Body,Body Name,Date,Transaction Number,Invoice Number,Amount,Supplier Name,Supplier ID ,VAT Registration Number ,Expense Area,Expense Type,Expense Code,Purchase Order
http://statistics.data.gov.uk/id/local-authority/29UP,Tonbridge & Malling Borough Council,11/1/2021,0041033617/1,41033617, 19.95,WorldPay Ltd,01402000,991280207,Credit Card Commission,Banking Arrangements,D43QK000044082,
http://statistics.data.gov.uk/id/local-authority/29UP,Tonbridge & Malling Borough Council,11/1/2021,0051008611/1,51008611, 1560.00,Redactive Publishing Limited,01791300,,Recruitment Advertising,Recruitment Expenses,D10DADJ0013110,
http://statistics.data.gov.uk/id/local-authority/29UP,Tonbridge & Malling Borough Council,11/3/2021,0011043371/1,11043371, 10.02,REDACTED PERSONAL DATA,01073700,,Purchases,Cleaning & Security,D21FDDD6040101,
http://statistics.data.gov.uk/id/local-authority/29UP,Tonbridge & Malling Borough Council,11/3/2021,0011043371/2,11043371, 11.18,REDACTED PERSONAL DATA,01073700,,Purchases,Cleaning & Security,D21FDDD6040101,
http://statistics.data.gov.uk/id/local-authority/29UP,Tonbridge & Malling Borough Council,11/3/2021,0011043371/3,11043371, 5.00,REDACTED PERSONAL DATA,01073700,,Purchases,Cleaning & Security,D21FDDD6040101,
http://statistics.data.gov.uk/id/local-authority/29UP,Tonbridge & Malling Borough Council,11/3/2021,0011043389/1,11043389, 350.00,Mary Mary Creates Gardens Ltd,01657700,,Re-opening High Streets,Eco Dev & Reg Gen Bus Support,D52TDCV1948076,110069268
http://statistics.data.gov.uk/id/local-authority/29UP,Tonbridge & Malling Borough Council,11/3/2021,0011043390/1,11043390, 1195.00,Assoc. of Tourist Attractions in Kent,00006000,573619712,Marketing,Tonbridge Castle Gatehouse,B40TG000044215,110069269
http://statistics.data.gov.uk/id/local-authority/29UP,Tonbridge & Malling Borough Council,11/3/2021,0011043392/1,11043392, 12000.00,The National Trust,00226500,,H&CG Fund Council Specific,Eco Dev & Reg Gen Bus Support,D52TD000047027,
http://statistics.data.gov.uk/id/local-authority/29UP,Tonbridge & Malling Borough Council,11/3/2021,0011043393/1,11043393, 1404.00,Thomson Snell & Passmore,00101700,,Legal Fees,Legal Sals&Overheads,D01ARDR0044002,
http://statistics.data.gov.uk/id/local-authority/29UP,Tonbridge & Malling Borough Council,11/3/2021,0011043394/1,11043394, 1134.00,Venn Group Ltd,00914300,,Temporary Staff,Legal Sals&Overheads,D01ARDR0011300,
http://statistics.data.gov.uk/id/local-authority/29UP,Tonbridge & Malling Borough Council,11/3/2021,0011043395/1,11043395, 1050.00,Venn Group Ltd,00914300,,Temporary Staff,Legal Sals&Overheads,D01ARDR0011300,
http://statistics.data.gov.uk/id/local-authority/29UP,Tonbridge & Malling Borough Council,11/3/2021,0011043397/1,11043397, 504.33,Harper Collins Publishers,01787600,,Purchases,TIC Stock Account,K18AX000001002,
http://statistics.data.gov.uk/id/local-authority/29UP,Tonbridge & Malling Borough Council,11/3/2021,0011043398/1,11043398, 165.87,LexisNexis UK,00016100,,Reference Books & Publications,Legal Sals&Overheads,D01ARDR0043010,
http://statistics.data.gov.uk/id/local-authority/29UP,Tonbridge & Malling Borough Council,11/3/2021,0011043398/2,11043398, 176.13,LexisNexis UK,00016100,,Reference Books & Publications,Legal Sals&Overheads,D01ARDR0043010,
http://statistics.data.gov.uk/id/local-authority/29UP,Tonbridge & Malling Borough Council,11/3/2021,0011043398/3,11043398, 7.00,LexisNexis UK,00016100,,Reference Books & Publications,Legal Sals&Overheads,D01ARDR0043010,
http://statistics.data.gov.uk/id/local-authority/29UP,Tonbridge & Malling Borough Council,11/3/2021,0011043399/1,11043399, 8650.00,Cornerstones Barristers,01359100,,Legal Fees,Legal Sals&Overheads,D01ARDR0044002,
http://statistics.data.gov.uk/id/local-authority/29UP,Tonbridge & Malling Borough Council,11/3/2021,0011043400/1,11043400, 120.00,Traffic Management Services Ltd,01818900,,BRREP General Maintenance,Land Review,M15MAP40101900,110069256
http://statistics.data.gov.uk/id/local-authority/29UP,Tonbridge & Malling Borough Council,11/3/2021,0011043401/1,11043401, 32.40, Goldstar UK,00160700,,Uniforms,Cleaning & Security,D21FD000042002,110069246
http://statistics.data.gov.uk/id/local-authority/29UP,Tonbridge & Malling Borough Council,11/3/2021,0011043401/2,11043401, 25.50, Goldstar UK,00160700,,Uniforms,Cleaning & Security,D21FD000042002,110069246
http://statistics.data.gov.uk/id/local-authority/29UP,Tonbridge & Malling Borough Council,11/3/2021,0011043401/3,11043401, 68.96, Goldstar UK,00160700,,Uniforms,Cleaning & Security,D21FD000042002,110069246
http://statistics.data.gov.uk/id/local-authority/29UP,Tonbridge & Malling Borough Council,11/3/2021,0011043402/1,11043402, 13.00,KCS,00054200,,Purchases,Cleaning & Security,D21FD000040101,110069262
http://statistics.data.gov.uk/id/local-authority/29UP,Tonbridge & Malling Borough Council,11/3/2021,0011043403/1,11043403, 170.00,Broadwater Technologies,01534500,,BRREP Servicing - pool plant,Larkfield Leisure Centre,M15HDP20001910,110069267
http://statistics.data.gov.uk/id/local-authority/29UP,Tonbridge & Malling Borough Council,11/3/2021,0011043404/1,11043404, 1600.00,G C Industrial Heating Services,00578100,,BRREP Response - General,Gibson Building East,M15KGP50001997,110069183
http://statistics.data.gov.uk/id/local-authority/29UP,Tonbridge & Malling Borough Council,11/3/2021,0011043405/1,11043405, 890.00,G C Industrial Heating Services,00578100,,BRREP Response - General,Tonbridge Swimming Pool,M15HBP50001997,110069263
http://statistics.data.gov.uk/id/local-authority/29UP,Tonbridge & Malling Borough Council,11/3/2021,0011043406/1,11043406, 368.25,KCS,00054200,,Purchases,Cleaning & Security,D21FDDD6040101,110069173
http://statistics.data.gov.uk/id/local-authority/29UP,Tonbridge & Malling Borough Council,11/3/2021,0011043407/1,11043407, 387.00,BML Building Services Ltd,01505000,,BRREP Response - General,Ton Sportsgrnd Bldgs / Toilets,M15HCP50001997,110069253
http://statistics.data.gov.uk/id/local-authority/29UP,Tonbridge & Malling Borough Council,11/3/2021,0011043408/1,11043408, 56.00,Willow Pumps Ltd,00114100,,BRREP Servicing - Pumping Stn,Tonbridge Swimming Pool,M15HBP20001931,110069172
http://statistics.data.gov.uk/id/local-authority/29UP,Tonbridge & Malling Borough Council,11/3/2021,0011043408/2,11043408, 112.00,Willow Pumps Ltd,00114100,,BRREP Servicing - Pumping Stn,Ton Sportsgrnd Bldgs / Toilets,M15HCP20001931,110069172
http://statistics.data.gov.uk/id/local-authority/29UP,Tonbridge & Malling Borough Council,11/3/2021,0011043408/3,11043408, 112.00,Willow Pumps Ltd,00114100,,BRREP Servicing - Pumping Stn,Vale Rise Depot,M15LCP20001931,110069172
http://statistics.data.gov.uk/id/local-authority/29UP,Tonbridge & Malling Borough Council,11/3/2021,0011043409/1,11043409, 474.00,BML Building Services Ltd,01505000,,BRREP Response - General,Land Review,M15MAP50001997,110069230
http://statistics.data.gov.uk/id/local-authority/29UP,Tonbridge & Malling Borough Council,11/3/2021,0011043410/1,11043410, 1401.40,Vertif,01745700,,Maintenance - Ancillary Equip,Information Technology,D27KD000040137,110069188
http://statistics.data.gov.uk/id/local-authority/29UP,Tonbridge & Malling Borough Council,11/3/2021,0011043411/1,11043411, 501.90,Encore Envelopes Ltd,01750600,,Stationery,Electoral Registration,D31MF000043003,
http://statistics.data.gov.uk/id/local-authority/29UP,Tonbridge & Malling Borough Council,11/3/2021,0011043412/1,11043412, 339.84,Premier Paper Group,01421800,,Purchases - Paper,Printing,D22GA000040102,
http://statistics.data.gov.uk/id/local-authority/29UP,Tonbridge & Malling Borough Council,11/3/2021,0011043413/1,11043413, 162.00,Prosec General Security Ltd,00810600,,Office Security,Ton Castle Council Chamber,D21FC000044047,
http://statistics.data.gov.uk/id/local-authority/29UP,Tonbridge & Malling Borough Council,11/3/2021,0011043413/2,11043413, 615.20,Prosec General Security Ltd,00810600,,Office Security,Cleaning & Security,D21FD000044047,
http://statistics.data.gov.uk/id/local-authority/29UP,Tonbridge & Malling Borough Council,11/3/2021,0011043413/3,11043413, 2929.50,Prosec General Security Ltd,00810600,,Office Security,Tonbridge Gateway,D23TG000044047,
http://statistics.data.gov.uk/id/local-authority/29UP,Tonbridge & Malling Borough Council,11/3/2021,0011043414/1,11043414, 980.00,G C Industrial Heating Services,00578100,,BRREP Servicing - Heating Syst,Tonbridge Swimming Pool,M15HBP20001934,
http://statistics.data.gov.uk/id/local-authority/29UP,Tonbridge & Malling Borough Council,11/3/2021,0011043415/1,11043415, 358.45,Royal Mail,00086200,,Postages - Business Reply,Electoral Registration,D31MF000045003,
http://statistics.data.gov.uk/id/local-authority/29UP,Tonbridge & Malling Borough Council,11/3/2021,0011043415/2,11043415, 94.78,Royal Mail,00086200,,Purchases,Business Reply Stock Account,K14AT000001002,
http://statistics.data.gov.uk/id/local-authority/29UP,Tonbridge & Malling Borough Council,11/3/2021,0011043416/1,11043416, 2673.67,KCS,00054200,,Electricity,Buildings,D21FEDD1021002,
http://statistics.data.gov.uk/id/local-authority/29UP,Tonbridge & Malling Borough Council,11/3/2021,0012008156/1,12008156, 5008.32,Loop1 UK Limited,01746700,,Software Hire & Support,Information Technology,D27KD000044059,410032077
http://statistics.data.gov.uk/id/local-authority/29UP,Tonbridge & Malling Borough Council,11/3/2021,0012008157/1,12008157, 4215.40,NEC Software Solutions UK Ltd,01073900,202159745,Software Hire & Support,Information Technology,D27KD000044059,410032051
http://statistics.data.gov.uk/id/local-authority/29UP,Tonbridge & Malling Borough Council,11/3/2021,0012008158/1,12008158, 24.95,CCS Media Ltd,00018000,,Purchases,Information Technology,D27KD000040101,410032071
http://statistics.data.gov.uk/id/local-authority/29UP,Tonbridge & Malling Borough Council,11/3/2021,0012008158/2,12008158, 2.00,CCS Media Ltd,00018000,,Delivery Expenses,Information Technology,D27KD000044069,410032071
http://statistics.data.gov.uk/id/local-authority/29UP,Tonbridge & Malling Borough Council,11/3/2021,0012008159/1,12008159, 5706.00,BlueFort Security Ltd,01214100,,Software Hire & Support,Information Technology,D27KD000044059,410032076
http://statistics.data.gov.uk/id/local-authority/29UP,Tonbridge & Malling Borough Council,11/3/2021,0012008160/1,12008160, 12.11,Esendex Limited,01008900,,Leased Lines & Modems,Information Technology,D27KD000045011,
http://statistics.data.gov.uk/id/local-authority/29UP,Tonbridge & Malling Borough Council,11/3/2021,0012008161/1,12008161, 6185.83,ESRI (UK) Ltd,00746300,,Consultancy Fees,Information Technology,D27KD000044011,410032028
http://statistics.data.gov.uk/id/local-authority/29UP,Tonbridge & Malling Borough Council,11/3/2021,0012008161/2,12008161, 1980.00,ESRI (UK) Ltd,00746300,,Consultancy Fees,Information Technology,D27KD000044011,410032028
http://statistics.data.gov.uk/id/local-authority/29UP,Tonbridge & Malling Borough Council,11/3/2021,0012008162/1,12008162, 2752.00,NTT United Kingdom Ltd,01747000,,Consultancy Fees,Information Technology,D27KD000044011,410032043
http://statistics.data.gov.uk/id/local-authority/29UP,Tonbridge & Malling Borough Council,11/3/2021,0012008163/1,12008163, 850.00,Imperial Civil Enforcement Solutions,00057200,,Consultancy Fees,Information Technology,D27KD000044011,410032030
http://statistics.data.gov.uk/id/local-authority/29UP,Tonbridge & Malling Borough Council,11/3/2021,0021037535/1,21037535, 3242.00,M & M Contractors,01266500,,Initial Furniture & Equipment,Capital Renewals Leisure,P05KGBC0509906,210056505
http://statistics.data.gov.uk/id/local-authority/29UP,Tonbridge & Malling Borough Council,11/3/2021,0021037538/1,21037538, 1580.00,Canford Audio Limited,01182500,,Purchases,Street Scene,H23SD000040101,220003162
http://statistics.data.gov.uk/id/local-authority/29UP,Tonbridge & Malling Borough Council,11/3/2021,0021037539/1,21037539, 147.00,Leybourne Lake Watersports Centre,01735000,,Partnership Fees,Youth Partnerships,B33PG000044048,210056491
http://statistics.data.gov.uk/id/local-authority/29UP,Tonbridge & Malling Borough Council,11/3/2021,0021037540/1,21037540, 12300.00,MGB Plastics Ltd,00709600,,Purchases,Garden Waste Recycling,H34ST000040101,210056513
http://statistics.data.gov.uk/id/local-authority/29UP,Tonbridge & Malling Borough Council,11/3/2021,0021037541/1,21037541, 20341.80,Landscape Services Ltd,00057600,,Grounds Maintenance Contract,Sports Grounds,B13ET000050103,
http://statistics.data.gov.uk/id/local-authority/29UP,Tonbridge & Malling Borough Council,11/3/2021,0021037541/10,21037541, 149.11,Landscape Services Ltd,00057600,,Grounds Maintenance Contract,Churchyards St Stephens,B28MY000050103,
http://statistics.data.gov.uk/id/local-authority/29UP,Tonbridge & Malling Borough Council,11/3/2021,0021037541/11,21037541, 164.81,Landscape Services Ltd,00057600,,Grounds Maintenance Contract,Grounds,D21FF000050103,
http://statistics.data.gov.uk/id/local-authority/29UP,Tonbridge & Malling Borough Council,11/3/2021,0021037541/12,21037541, 312.58,Landscape Services Ltd,00057600,,Maintenance of Grounds,Parking Off-Street,E10HA000020402,
http://statistics.data.gov.uk/id/local-authority/29UP,Tonbridge & Malling Borough Council,11/3/2021,0021037541/13,21037541, 980.27,Landscape Services Ltd,00057600,,Maintenance of Grounds,Parking Off-Street,E10HAE00120402,
http://statistics.data.gov.uk/id/local-authority/29UP,Tonbridge & Malling Borough Council,11/3/2021,0021037541/14,21037541, 93.08,Landscape Services Ltd,00057600,,Maintenance of Grounds,Parking Off-Street,E10HAE00220402,
http://statistics.data.gov.uk/id/local-authority/29UP,Tonbridge & Malling Borough Council,11/3/2021,0021037541/15,21037541, 84.41,Landscape Services Ltd,00057600,,Maintenance of Grounds,Parking Off-Street,E10HAE00320402,
http://statistics.data.gov.uk/id/local-authority/29UP,Tonbridge & Malling Borough Council,11/3/2021,0021037541/16,21037541, 21.05,Landscape Services Ltd,00057600,,Maintenance of Grounds,Parking Off-Street,E10HAE00420402,
http://statistics.data.gov.uk/id/local-authority/29UP,Tonbridge & Malling Borough Council,11/3/2021,0021037541/17,21037541, 0.54,Landscape Services Ltd,00057600,,Maintenance of Grounds,Parking Off-Street,E10HAE00520402,
http://statistics.data.gov.uk/id/local-authority/29UP,Tonbridge & Malling Borough Council,11/3/2021,0021037541/18,21037541, 58.93,Landscape Services Ltd,00057600,,Maintenance of Grounds,Parking Off-Street,E10HAE00620402,
http://statistics.data.gov.uk/id/local-authority/29UP,Tonbridge & Malling Borough Council,11/3/2021,0021037541/19,21037541, 137.58,Landscape Services Ltd,00057600,,Maintenance of Grounds,Parking Off-Street,E10HAE01020402,
http://statistics.data.gov.uk/id/local-authority/29UP,Tonbridge & Malling Borough Council,11/3/2021,0021037541/2,21037541, 7076.24,Landscape Services Ltd,00057600,,Grounds Maintenance Contract,Tonbridge Castle Grounds,B22LB000050103,
http://statistics.data.gov.uk/id/local-authority/29UP,Tonbridge & Malling Borough Council,11/3/2021,0021037541/20,21037541, 3.05,Landscape Services Ltd,00057600,,Maintenance of Grounds,Parking Off-Street,E10HAE01220402,
http://statistics.data.gov.uk/id/local-authority/29UP,Tonbridge & Malling Borough Council,11/3/2021,0021037541/21,21037541, 6.73,Landscape Services Ltd,00057600,,Maintenance of Grounds,Parking Off-Street,E10HAE01320402,
http://statistics.data.gov.uk/id/local-authority/29UP,Tonbridge & Malling Borough Council,11/3/2021,0021037541/22,21037541, 27.99,Landscape Services Ltd,00057600,,Maintenance of Grounds,Parking Off-Street,E10HAE01520402,
http://statistics.data.gov.uk/id/local-authority/29UP,Tonbridge & Malling Borough Council,11/3/2021,0021037541/23,21037541, 54.69,Landscape Services Ltd,00057600,,Maintenance of Grounds,Parking Off-Street,E10HAE01620402,
http://statistics.data.gov.uk/id/local-authority/29UP,Tonbridge & Malling Borough Council,11/3/2021,0021037541/24,21037541, 13.65,Landscape Services Ltd,00057600,,Maintenance of Grounds,Parking Off-Street,E10HAE02120402,
http://statistics.data.gov.uk/id/local-authority/29UP,Tonbridge & Malling Borough Council,11/3/2021,0021037541/25,21037541, 21.74,Landscape Services Ltd,00057600,,Maintenance of Grounds,Parking Off-Street,E10HAE02320402,
http://statistics.data.gov.uk/id/local-authority/29UP,Tonbridge & Malling Borough Council,11/3/2021,0021037541/26,21037541, 83.33,Landscape Services Ltd,00057600,,Maintenance of Grounds,Parking Off-Street,E10HAE02820402,
http://statistics.data.gov.uk/id/local-authority/29UP,Tonbridge & Malling Borough Council,11/3/2021,0021037541/27,21037541, 22.56,Landscape Services Ltd,00057600,,Maintenance of Grounds,Parking Off-Street,E10HAE04020402,
http://statistics.data.gov.uk/id/local-authority/29UP,Tonbridge & Malling Borough Council,11/3/2021,0021037541/28,21037541, 74.40,Landscape Services Ltd,00057600,,Maintenance of Grounds,Parking Off-Street,E10HAE04520402,
http://statistics.data.gov.uk/id/local-authority/29UP,Tonbridge & Malling Borough Council,11/3/2021,0021037541/3,21037541, 53.86,Landscape Services Ltd,00057600,,Trade Refuse Charges,Haysden Country Park,B22LC000044008,
http://statistics.data.gov.uk/id/local-authority/29UP,Tonbridge & Malling Borough Council,11/3/2021,0021037541/4,21037541, 462.07,Landscape Services Ltd,00057600,,Litter Collection,Haysden Country Park,B22LC000044061,
http://statistics.data.gov.uk/id/local-authority/29UP,Tonbridge & Malling Borough Council,11/3/2021,0021037541/5,21037541, 1600.71,Landscape Services Ltd,00057600,,Grounds Maintenance Contract,Haysden Country Park,B22LC000050103,
http://statistics.data.gov.uk/id/local-authority/29UP,Tonbridge & Malling Borough Council,11/3/2021,0021037541/6,21037541, 554.05,Landscape Services Ltd,00057600,,Grounds Maintenance Contract,Haysden Country Park,B22LC000050103,
http://statistics.data.gov.uk/id/local-authority/29UP,Tonbridge & Malling Borough Council,11/3/2021,0021037541/7,21037541, 11232.13,Landscape Services Ltd,00057600,,Grounds Maintenance Contract,Open Spaces & Amenity Areas,B22LE000050103,
http://statistics.data.gov.uk/id/local-authority/29UP,Tonbridge & Malling Borough Council,11/3/2021,0021037541/8,21037541, 4341.07,Landscape Services Ltd,00057600,,Grounds Maintenance Contract,Cemetery,B26MP000050103,
http://statistics.data.gov.uk/id/local-authority/29UP,Tonbridge & Malling Borough Council,11/3/2021,0021037541/9,21037541, 205.04,Landscape Services Ltd,00057600,,Grounds Maintenance Contract,Churchyards St Peter & St Paul,B28MX000050103,
http://statistics.data.gov.uk/id/local-authority/29UP,Tonbridge & Malling Borough Council,11/3/2021,0021037542/1,21037542, 230.00,Green Oak Services,01635000,,Health & Safety - Trees,Countryside/Woodland Mgt,B22LG000044045,
http://statistics.data.gov.uk/id/local-authority/29UP,Tonbridge & Malling Borough Council,11/3/2021,0021037543/1,21037543, 2310.00,Airquee Limited,01006900,992108704,Initial Furniture & Equipment,Capital Renewals Leisure,P05KGBC0109906,210056465
http://statistics.data.gov.uk/id/local-authority/29UP,Tonbridge & Malling Borough Council,11/3/2021,0022025894/1,22025894, 32.29,REDACTED PERSONAL DATA,01088600,,Purchases,St Scene & Leis Sals&Overheads,D01AGDG2040101,
http://statistics.data.gov.uk/id/local-authority/29UP,Tonbridge & Malling Borough Council,11/3/2021,0022025901/1,22025901, 196.00,Loxton Installations Ltd,01278800,,Repairs & Mtce to Buildings,Homelessness,C01AATNHS20101,
http://statistics.data.gov.uk/id/local-authority/29UP,Tonbridge & Malling Borough Council,11/3/2021,0022025902/3,22025902, 12.84,Mrs D Pellen,01151100,,Other Expenses,Food & Safety - Food Safety,H35SX000048010,
http://statistics.data.gov.uk/id/local-authority/29UP,Tonbridge & Malling Borough Council,11/3/2021,0022025903/1,22025903, 12300.00,MGB Plastics Ltd,00709600,,Other Expenses,Green Waste Bin Growth/Replace,P02BC000009908,220003150
http://statistics.data.gov.uk/id/local-authority/29UP,Tonbridge & Malling Borough Council,11/3/2021,0022025904/3,22025904, 936.00,The Oyster Partnership,01196400,,Temporary Staff,Env Hlth & Hsg Sals&Overheads,D01AVDV0711300,
http://statistics.data.gov.uk/id/local-authority/29UP,Tonbridge & Malling Borough Council,11/3/2021,0022025905/1,22025905, 4.16,REDACTED PERSONAL DATA,01051900,,Purchases,Environmental Protection,H32SN000040101,
http://statistics.data.gov.uk/id/local-authority/29UP,Tonbridge & Malling Borough Council,11/3/2021,0022025906/1,22025906, 4645.60,Countrystyle Group,00835900,781981681,Plastic Recycling,Dry Recycling,H34SR000054019,
http://statistics.data.gov.uk/id/local-authority/29UP,Tonbridge & Malling Borough Council,11/3/2021,0022025907/1,22025907, 430.80,Countrystyle Group,00835900,781981681,Plastic Recycling,Dry Recycling,H34SR000054019,
http://statistics.data.gov.uk/id/local-authority/29UP,Tonbridge & Malling Borough Council,11/3/2021,0022025908/1,22025908, 400.00,Green Recycling LTD,01563000,,Paper Recycling,Dry Recycling,H34SR000054024,
http://statistics.data.gov.uk/id/local-authority/29UP,Tonbridge & Malling Borough Council,11/3/2021,0022025909/1,22025909, 591.45,KCC - L.A.S.E.R Commercial Services ,00184300,,Electricity,Public Conveniences,H22SCH00921002,
http://statistics.data.gov.uk/id/local-authority/29UP,Tonbridge & Malling Borough Council,11/3/2021,0022025910/1,22025910, 3735.29,Ward Security LTD,01490000,,Dog Warden,Street Scene,H23SD000044100,
http://statistics.data.gov.uk/id/local-authority/29UP,Tonbridge & Malling Borough Council,11/3/2021,0022025911/1,22025911, 8500.00,Peabody South East LTD,01680900,,Countywide DFG Project,Private Sector Housing Renewal,C03BD000044031,
http://statistics.data.gov.uk/id/local-authority/29UP,Tonbridge & Malling Borough Council,11/3/2021,0022025912/1,22025912, 9196.30,Peabody South East LTD,01680900,,Countywide DFG Project,Private Sector Housing Renewal,C03BD000044031,
http://statistics.data.gov.uk/id/local-authority/29UP,Tonbridge & Malling Borough Council,11/3/2021,0022025913/1,22025913, 16085.65,Peabody South East LTD,01680900,,Countywide DFG Project,Private Sector Housing Renewal,C03BD000044031,
http://statistics.data.gov.uk/id/local-authority/29UP,Tonbridge & Malling Borough Council,11/3/2021,0022025914/1,22025914, 5744.88,Peabody South East LTD,01680900,,Countywide DFG Project,Private Sector Housing Renewal,C03BD000044031,
http://statistics.data.gov.uk/id/local-authority/29UP,Tonbridge & Malling Borough Council,11/3/2021,0022025915/1,22025915, 6.80,KCS,00054200,,Stationery,Env Hlth & Hsg Sals&Overheads,D01AVDV0643003,220003163
http://statistics.data.gov.uk/id/local-authority/29UP,Tonbridge & Malling Borough Council,11/3/2021,0022025916/1,22025916, 360.00,Peabody South East LTD,01680900,,Other Expenses,Disabled Facilities Grant Mand,P03AC000009908,
http://statistics.data.gov.uk/id/local-authority/29UP,Tonbridge & Malling Borough Council,11/3/2021,0022025917/1,22025917, 11052.38,Elite Complete Build LTD,01625900,,Other Expenses,Disabled Facilities Grant Mand,P03AC000009908,
http://statistics.data.gov.uk/id/local-authority/29UP,Tonbridge & Malling Borough Council,11/3/2021,0022025918/1,22025918, 1563.58,Peabody South East LTD,01680900,,Other Expenses,Disabled Facilities Grant Mand,P03AC000009908,
http://statistics.data.gov.uk/id/local-authority/29UP,Tonbridge & Malling Borough Council,11/3/2021,0022025919/1,22025919, 1669.20,Peabody South East LTD,01680900,,Other Expenses,Disabled Facilities Grant Mand,P03AC000009908,
http://statistics.data.gov.uk/id/local-authority/29UP,Tonbridge & Malling Borough Council,11/3/2021,0022025920/1,22025920, 5911.58,Accessible Solutions LTD,01539700,,Other Expenses,Disabled Facilities Grant Mand,P03AC000009908,
http://statistics.data.gov.uk/id/local-authority/29UP,Tonbridge & Malling Borough Council,11/3/2021,0022025921/1,22025921, 857.27,Peabody South East LTD,01680900,,Other Expenses,Disabled Facilities Grant Mand,P03AC000009908,
http://statistics.data.gov.uk/id/local-authority/29UP,Tonbridge & Malling Borough Council,11/3/2021,0022025922/1,22025922, 2589.00,Ascendit Lifts Ltd,00446600,,Other Expenses,Disabled Facilities Grant Mand,P03AC000009908,
http://statistics.data.gov.uk/id/local-authority/29UP,Tonbridge & Malling Borough Council,11/3/2021,0022025923/1,22025923, 311.62,Peabody South East LTD,01680900,,Other Expenses,Disabled Facilities Grant Mand,P03AC000009908,
http://statistics.data.gov.uk/id/local-authority/29UP,Tonbridge & Malling Borough Council,11/3/2021,0022025924/1,22025924, 150.00,Citizens Advice North and West Kent ,01617600,,Homelessness Reduction Initiat,Homelessness,C01AA000048019,
http://statistics.data.gov.uk/id/local-authority/29UP,Tonbridge & Malling Borough Council,11/3/2021,0022025925/1,22025925, 104.00,The College Practice,01131900,,Medical Assessments,Homelessness,C01AA000056009,
http://statistics.data.gov.uk/id/local-authority/29UP,Tonbridge & Malling Borough Council,11/3/2021,0022025926/3,22025926, 763.31,G2 Recruitment Solutions,01786000,,Temporary Staff,Env Hlth & Hsg Sals&Overheads,D01AVDV0711300,
http://statistics.data.gov.uk/id/local-authority/29UP,Tonbridge & Malling Borough Council,11/3/2021,0022025927/3,22025927, 763.31,G2 Recruitment Solutions,01786000,,Temporary Staff,Env Hlth & Hsg Sals&Overheads,D01AVDV0711300,
http://statistics.data.gov.uk/id/local-authority/29UP,Tonbridge & Malling Borough Council,11/3/2021,0022025928/3,22025928, 1239.50,Vivid Resourcing,01773700,,Temporary Staff,Env Hlth & Hsg Sals&Overheads,D01AVDV0711300,
http://statistics.data.gov.uk/id/local-authority/29UP,Tonbridge & Malling Borough Council,11/3/2021,0022025929/3,22025929, 1060.95,Vivid Resourcing,01773700,,Temporary Staff,Env Hlth & Hsg Sals&Overheads,D01AVDV0711300,
http://statistics.data.gov.uk/id/local-authority/29UP,Tonbridge & Malling Borough Council,11/3/2021,0031018250/1,31018250, 793.30,PSR Lighting & Signs Ltd,01265400,,Re-opening High Streets,Eco Dev & Reg Gen Bus Support,D52TDCV1948076,310042731
http://statistics.data.gov.uk/id/local-authority/29UP,Tonbridge & Malling Borough Council,11/3/2021,0031018253/1,31018253, 6.11,REDACTED PERSONAL DATA,01820500,,Purchases,Security Services Management,E09GA000040101,
http://statistics.data.gov.uk/id/local-authority/29UP,Tonbridge & Malling Borough Council,11/3/2021,0031018260/1,31018260, 156.30,British Telecommunications Plc,00012800,,Maintenance - General,Security Services Management,E09GA000040135,
http://statistics.data.gov.uk/id/local-authority/29UP,Tonbridge & Malling Borough Council,11/3/2021,0031018261/1,31018261, 2459.13,CDER Group,01773300,,Adjudication & Enforcement Ser,Parking Off-Street,E10HA000044230,
http://statistics.data.gov.uk/id/local-authority/29UP,Tonbridge & Malling Borough Council,11/3/2021,0031018262/1,31018262, 15.90,KelticLimited,01000400,,Uniforms,Parking Off-Street,E10HA000042002,310042742
http://statistics.data.gov.uk/id/local-authority/29UP,Tonbridge & Malling Borough Council,11/3/2021,0031018262/2,31018262, 7.90,KelticLimited,01000400,,Uniforms,Parking Off-Street,E10HA000042002,310042742
http://statistics.data.gov.uk/id/local-authority/29UP,Tonbridge & Malling Borough Council,11/3/2021,0031018262/3,31018262, 3.98,KelticLimited,01000400,,Uniforms,Parking Off-Street,E10HA000042002,310042742
http://statistics.data.gov.uk/id/local-authority/29UP,Tonbridge & Malling Borough Council,11/3/2021,0031018262/4,31018262, 6.00,KelticLimited,01000400,,Uniforms,Parking Off-Street,E10HA000042002,310042742
http://statistics.data.gov.uk/id/local-authority/29UP,Tonbridge & Malling Borough Council,11/3/2021,0031018262/5,31018262, 9.00,KelticLimited,01000400,,Uniforms,Parking On-Street,E10HD000042002,310042742
http://statistics.data.gov.uk/id/local-authority/29UP,Tonbridge & Malling Borough Council,11/3/2021,0031018262/6,31018262, 5.97,KelticLimited,01000400,,Uniforms,Parking On-Street,E10HD000042002,310042742
http://statistics.data.gov.uk/id/local-authority/29UP,Tonbridge & Malling Borough Council,11/3/2021,0031018262/7,31018262, 23.85,KelticLimited,01000400,,Uniforms,Parking On-Street,E10HD000042002,310042742
http://statistics.data.gov.uk/id/local-authority/29UP,Tonbridge & Malling Borough Council,11/3/2021,0031018262/8,31018262, 11.85,KelticLimited,01000400,,Uniforms,Parking On-Street,E10HD000042002,310042742
http://statistics.data.gov.uk/id/local-authority/29UP,Tonbridge & Malling Borough Council,11/3/2021,0031018263/1,31018263, 1005.00,Marston,01485000,,Adjudication & Enforcement Ser,Parking Off-Street,E10HA000044230,
http://statistics.data.gov.uk/id/local-authority/29UP,Tonbridge & Malling Borough Council,11/3/2021,0031018264/1,31018264, 65.47,Shell U.K. Oil Products Limited,01673300,,"Petrol, Diesel & Oil",Patrolling,B22LF000030106,
http://statistics.data.gov.uk/id/local-authority/29UP,Tonbridge & Malling Borough Council,11/3/2021,0031018264/2,31018264, 146.96,Shell U.K. Oil Products Limited,01673300,,"Petrol, Diesel & Oil",Parking Off-Street,E10HA000030106,
http://statistics.data.gov.uk/id/local-authority/29UP,Tonbridge & Malling Borough Council,11/3/2021,0031018264/3,31018264, 146.96,Shell U.K. Oil Products Limited,01673300,,"Petrol, Diesel & Oil",Parking On-Street,E10HD000030106,
http://statistics.data.gov.uk/id/local-authority/29UP,Tonbridge & Malling Borough Council,11/3/2021,0031018265/1,31018265, 65.47,Shell U.K. Oil Products Limited,01673300,,"Petrol, Diesel & Oil",Patrolling,B22LF000030106,
http://statistics.data.gov.uk/id/local-authority/29UP,Tonbridge & Malling Borough Council,11/3/2021,0031018265/2,31018265, 101.59,Shell U.K. Oil Products Limited,01673300,,"Petrol, Diesel & Oil",Parking Off-Street,E10HA000030106,
http://statistics.data.gov.uk/id/local-authority/29UP,Tonbridge & Malling Borough Council,11/3/2021,0031018265/3,31018265, 101.58,Shell U.K. Oil Products Limited,01673300,,"Petrol, Diesel & Oil",Parking On-Street,E10HD000030106,
http://statistics.data.gov.uk/id/local-authority/29UP,Tonbridge & Malling Borough Council,11/3/2021,0031018266/1,31018266, 65.47,Shell U.K. Oil Products Limited,01673300,,"Petrol, Diesel & Oil",Patrolling,B22LF000030106,
http://statistics.data.gov.uk/id/local-authority/29UP,Tonbridge & Malling Borough Council,11/3/2021,0031018266/2,31018266, 150.11,Shell U.K. Oil Products Limited,01673300,,"Petrol, Diesel & Oil",Parking Off-Street,E10HA000030106,
http://statistics.data.gov.uk/id/local-authority/29UP,Tonbridge & Malling Borough Council,11/3/2021,0031018266/3,31018266, 150.10,Shell U.K. Oil Products Limited,01673300,,"Petrol, Diesel & Oil",Parking On-Street,E10HD000030106,
http://statistics.data.gov.uk/id/local-authority/29UP,Tonbridge & Malling Borough Council,11/3/2021,0031018267/1,31018267, 65.47,Shell U.K. Oil Products Limited,01673300,,"Petrol, Diesel & Oil",Patrolling,B22LF000030106,
http://statistics.data.gov.uk/id/local-authority/29UP,Tonbridge & Malling Borough Council,11/3/2021,0031018267/2,31018267, 196.99,Shell U.K. Oil Products Limited,01673300,,"Petrol, Diesel & Oil",Parking Off-Street,E10HA000030106,
http://statistics.data.gov.uk/id/local-authority/29UP,Tonbridge & Malling Borough Council,11/3/2021,0031018267/3,31018267, 196.98,Shell U.K. Oil Products Limited,01673300,,"Petrol, Diesel & Oil",Parking On-Street,E10HD000030106,
http://statistics.data.gov.uk/id/local-authority/29UP,Tonbridge & Malling Borough Council,11/3/2021,0032009295/3,32009295, 1210.00,The Oyster Partnership,01196400,,Temporary Staff,Planning Sals&Overheads,D01AJDJ0111300,
http://statistics.data.gov.uk/id/local-authority/29UP,Tonbridge & Malling Borough Council,11/3/2021,0032009296/1,32009296, 301.89,KM Media Group Ltd,00053900,,Advertising General,Development Management,A01ABZ99944216,320003341
http://statistics.data.gov.uk/id/local-authority/29UP,Tonbridge & Malling Borough Council,11/3/2021,0032009297/1,32009297, 104.10,KM Media Group Ltd,00053900,,Advertising General,Development Management,A01ABZ99944216,320003348
http://statistics.data.gov.uk/id/local-authority/29UP,Tonbridge & Malling Borough Council,11/3/2021,0032009298/1,32009298, 229.02,KM Media Group Ltd,00053900,,Advertising General,Development Management,A01ABZ99944216,320003345
http://statistics.data.gov.uk/id/local-authority/29UP,Tonbridge & Malling Borough Council,11/3/2021,0032009299/1,32009299, 4760.00,Nathaniel Lichfield & Partners Ltd,00070000,,Professional Fees,Planning Policy,A01AF000044001,320003339
http://statistics.data.gov.uk/id/local-authority/29UP,Tonbridge & Malling Borough Council,11/3/2021,0032009300/1,32009300, 7687.50,Solve Web Media,01819500,,Professional Fees,Planning Policy,A01AFBORO44001,320003349
http://statistics.data.gov.uk/id/local-authority/29UP,Tonbridge & Malling Borough Council,11/3/2021,0041033609/3,41033609, 980.50,Morgan Hunt UK Ltd,01086900,,Temporary Staff,Finance Sals&Overheads,D01AFDF1111300,
http://statistics.data.gov.uk/id/local-authority/29UP,Tonbridge & Malling Borough Council,11/3/2021,0041033610/3,41033610, 925.00,Morgan Hunt UK Ltd,01086900,,Temporary Staff,Finance Sals&Overheads,D01AFDF1111300,
http://statistics.data.gov.uk/id/local-authority/29UP,Tonbridge & Malling Borough Council,11/3/2021,0041033611/3,41033611, 332.30,Rundle & Co Ltd,00087200,,Bailiffs Commission,Local Revenue & NNDR Collect,D41QA000044075,
http://statistics.data.gov.uk/id/local-authority/29UP,Tonbridge & Malling Borough Council,11/3/2021,0041033612/3,41033612, 610.50,KH Recruitment Ltd,01738900,,Temporary Staff,Finance Sals&Overheads,D01AFDF1111300,
http://statistics.data.gov.uk/id/local-authority/29UP,Tonbridge & Malling Borough Council,11/3/2021,0041033618/1,41033618, 20.00,Computershare Voucher Services,01212600,,Childcare Scheme,Finance Sals&Overheads,D01AFDF0911136,
http://statistics.data.gov.uk/id/local-authority/29UP,Tonbridge & Malling Borough Council,11/3/2021,0041033618/10,41033618, 9.72,Computershare Voucher Services,01212600,,National Insurance,Env Hlth & Hsg Sals&Overheads,D01AVDV0711191,
http://statistics.data.gov.uk/id/local-authority/29UP,Tonbridge & Malling Borough Council,11/3/2021,0041033618/2,41033618, 0.80,Computershare Voucher Services,01212600,,National Insurance,Finance Sals&Overheads,D01AFDF0911191,
http://statistics.data.gov.uk/id/local-authority/29UP,Tonbridge & Malling Borough Council,11/3/2021,0041033618/3,41033618, 90.00,Computershare Voucher Services,01212600,,Childcare Scheme,St Scene & Leis Sals&Overheads,D01AGDG0411136,
http://statistics.data.gov.uk/id/local-authority/29UP,Tonbridge & Malling Borough Council,11/3/2021,0041033618/4,41033618, 3.60,Computershare Voucher Services,01212600,,National Insurance,St Scene & Leis Sals&Overheads,D01AGDG0411191,
http://statistics.data.gov.uk/id/local-authority/29UP,Tonbridge & Malling Borough Council,11/3/2021,0041033618/5,41033618, 50.00,Computershare Voucher Services,01212600,,Childcare Scheme,Legal Sals&Overheads,D01ARDR0011136,
http://statistics.data.gov.uk/id/local-authority/29UP,Tonbridge & Malling Borough Council,11/3/2021,0041033618/6,41033618, 2.00,Computershare Voucher Services,01212600,,National Insurance,Legal Sals&Overheads,D01ARDR0011191,
http://statistics.data.gov.uk/id/local-authority/29UP,Tonbridge & Malling Borough Council,11/3/2021,0041033618/7,41033618, 20.00,Computershare Voucher Services,01212600,,Childcare Scheme,Env Hlth & Hsg Sals&Overheads,D01AVDV0211136,
http://statistics.data.gov.uk/id/local-authority/29UP,Tonbridge & Malling Borough Council,11/3/2021,0041033618/8,41033618, 0.80,Computershare Voucher Services,01212600,,National Insurance,Env Hlth & Hsg Sals&Overheads,D01AVDV0211191,
http://statistics.data.gov.uk/id/local-authority/29UP,Tonbridge & Malling Borough Council,11/3/2021,0041033618/9,41033618, 243.00,Computershare Voucher Services,01212600,,Childcare Scheme,Env Hlth & Hsg Sals&Overheads,D01AVDV0711136,
http://statistics.data.gov.uk/id/local-authority/29UP,Tonbridge & Malling Borough Council,11/3/2021,0051008613/1,51008613, 1560.00,Redactive Publishing Limited,01791300,,Recruitment Advertising,Recruitment Expenses,D10DADJ0013110,
http://statistics.data.gov.uk/id/local-authority/29UP,Tonbridge & Malling Borough Council,11/3/2021,0051008615/3,51008615, 1560.00,Haymarket Media Group Limited,01197800,,Recruitment Advertising,Recruitment Expenses,D10DADJ0013110,
http://statistics.data.gov.uk/id/local-authority/29UP,Tonbridge & Malling Borough Council,11/4/2021,0041033626/1,41033626, 1384.00,CINEY INVESTMENTS,01722600,,Rent Deposit / Rent in Advance,Homelessness,C01AAC83344093,
http://statistics.data.gov.uk/id/local-authority/29UP,Tonbridge & Malling Borough Council,11/4/2021,0041033627/1,41033627, 15.00,National Westminster Bank Plc,00069400,,Bank Charges,Banking Arrangements,D43QK000044222,
http://statistics.data.gov.uk/id/local-authority/29UP,Tonbridge & Malling Borough Council,11/4/2021,0041033628/1,41033628, 250.00,National Westminster Bank Plc,00069400,,Bank Charges,Banking Arrangements,D43QK000044222,
http://statistics.data.gov.uk/id/local-authority/29UP,Tonbridge & Malling Borough Council,11/4/2021,0041033629/1,41033629, 1191.50,Security Plus + Limited,01815500,536937019,Cash Collection,Parking Off-Street,E10HA000044007,
http://statistics.data.gov.uk/id/local-authority/29UP,Tonbridge & Malling Borough Council,11/4/2021,0041033630/1,41033630, 4743.00,Security Plus + Limited,01815500,536937019,Cash Collection,Parking Off-Street,E10HA000044007,
http://statistics.data.gov.uk/id/local-authority/29UP,Tonbridge & Malling Borough Council,11/8/2021,0041033636/1,41033636, 6.17,National Westminster Bank Plc,00894500,,Purchases,Tonbridge Castle Gatehouse,B40TG000040101,
http://statistics.data.gov.uk/id/local-authority/29UP,Tonbridge & Malling Borough Council,11/8/2021,0041033636/11,41033636, 14.29,National Westminster Bank Plc,00894500,,Software Hire & Support,Information Technology,D27KD000044059,
http://statistics.data.gov.uk/id/local-authority/29UP,Tonbridge & Malling Borough Council,11/8/2021,0041033636/12,41033636, 37.91,National Westminster Bank Plc,00894500,,Software Hire & Support,Information Technology,D27KD000044059,
http://statistics.data.gov.uk/id/local-authority/29UP,Tonbridge & Malling Borough Council,11/8/2021,0041033636/13,41033636, 595.00,National Westminster Bank Plc,00894500,,Bank Charges,Banking Arrangements,D43QK000044222,
http://statistics.data.gov.uk/id/local-authority/29UP,Tonbridge & Malling Borough Council,11/8/2021,0041033636/14,41033636, 52.45,National Westminster Bank Plc,00894500,,Sales,TIC Stock Account,K18AX000002002,
http://statistics.data.gov.uk/id/local-authority/29UP,Tonbridge & Malling Borough Council,11/8/2021,0041033636/15,41033636, 9.99,National Westminster Bank Plc,00894500,,Sales,TIC Stock Account,K18AX000002002,
http://statistics.data.gov.uk/id/local-authority/29UP,Tonbridge & Malling Borough Council,11/8/2021,0041033636/2,41033636, 26.11,National Westminster Bank Plc,00894500,,Purchases,Tonbridge Castle Gatehouse,B40TG000040101,
http://statistics.data.gov.uk/id/local-authority/29UP,Tonbridge & Malling Borough Council,11/8/2021,0041033636/3,41033636, 4.16,National Westminster Bank Plc,00894500,,Purchases,Finance Sals&Overheads,D01AFDF1140101,
http://statistics.data.gov.uk/id/local-authority/29UP,Tonbridge & Malling Borough Council,11/8/2021,0041033636/4,41033636, 6.02,National Westminster Bank Plc,00894500,,Stationery,Finance Sals&Overheads,D01AFDF1143003,
http://statistics.data.gov.uk/id/local-authority/29UP,Tonbridge & Malling Borough Council,11/8/2021,0041033636/5,41033636, 76.44,National Westminster Bank Plc,00894500,,Ext Fees/Prof & Tech,Training,D10DCDE0213561,
http://statistics.data.gov.uk/id/local-authority/29UP,Tonbridge & Malling Borough Council,11/8/2021,0041033636/6,41033636, 120.00,National Westminster Bank Plc,00894500,,Ext Fees/Prof & Tech,Training,D10DCDV0313561,
http://statistics.data.gov.uk/id/local-authority/29UP,Tonbridge & Malling Borough Council,11/8/2021,0041033639/1,41033639, 5089.20,Clarion Housing,01078200,,Homelessness Reduction Initiat,Homelessness,C01AA000048019,
http://statistics.data.gov.uk/id/local-authority/29UP,Tonbridge & Malling Borough Council,11/10/2021,0011043417/3,11043417, 771.44,KCS,00054200,,Electricity,Buildings,D21FEDD5021002,
http://statistics.data.gov.uk/id/local-authority/29UP,Tonbridge & Malling Borough Council,11/10/2021,0011043418/3,11043418, 1114.56,KCS,00054200,,Electricity,Buildings,D21FEDD6021002,
http://statistics.data.gov.uk/id/local-authority/29UP,Tonbridge & Malling Borough Council,11/10/2021,0011043419/3,11043419, 330.76,KCS,00054200,,Estate Management Charge,Land Review,D40PS000020400,
http://statistics.data.gov.uk/id/local-authority/29UP,Tonbridge & Malling Borough Council,11/10/2021,0011043420/3,11043420, 156.88,Atlas Facilities Managment Limited ,01075900,,Miscellaneous Services,Cleaning & Security,D21FDDD5044015,
http://statistics.data.gov.uk/id/local-authority/29UP,Tonbridge & Malling Borough Council,11/10/2021,0011043421/3,11043421, 571.00,Premier Paper Group,01421800,,Purchases - Paper,Printing,D22GA000040102,
http://statistics.data.gov.uk/id/local-authority/29UP,Tonbridge & Malling Borough Council,11/10/2021,0011043422/3,11043422, 121.40,Premier Paper Group,01421800,,Purchases - Paper,Printing,D22GA000040102,
http://statistics.data.gov.uk/id/local-authority/29UP,Tonbridge & Malling Borough Council,11/10/2021,0011043423/3,11043423, 0.44,Royal Mail,00086200,,Postages - Business Reply,Electoral Registration,D31MF000045003,
http://statistics.data.gov.uk/id/local-authority/29UP,Tonbridge & Malling Borough Council,11/10/2021,0011043424/3,11043424, 1373.21,Royal Mail,00086200,,Purchases,Mailsort Stock Account,K37BR000001002,
http://statistics.data.gov.uk/id/local-authority/29UP,Tonbridge & Malling Borough Council,11/10/2021,0011043424/4,11043424, 1.60,Royal Mail,00086200,,Purchases,Mailsort Stock Account,K37BR000001002,
http://statistics.data.gov.uk/id/local-authority/29UP,Tonbridge & Malling Borough Council,11/10/2021,0011043425/3,11043425, 4866.11,Royal Mail,00086200,,Purchases,Mailsort Stock Account,K37BR000001002,
http://statistics.data.gov.uk/id/local-authority/29UP,Tonbridge & Malling Borough Council,11/10/2021,0011043426/3,11043426, 4.80,Royal Mail,00086200,,Purchases,Mailsort Stock Account,K37BR000001002,
http://statistics.data.gov.uk/id/local-authority/29UP,Tonbridge & Malling Borough Council,11/10/2021,0011043426/4,11043426, 4.68,Royal Mail,00086200,,Purchases,Mailsort Stock Account,K37BR000001002,
http://statistics.data.gov.uk/id/local-authority/29UP,Tonbridge & Malling Borough Council,11/10/2021,0011043426/5,11043426, 2123.17,Royal Mail,00086200,,Purchases,Mailsort Stock Account,K37BR000001002,
http://statistics.data.gov.uk/id/local-authority/29UP,Tonbridge & Malling Borough Council,11/10/2021,0011043427/3,11043427, 1.60,Royal Mail,00086200,,Purchases,Mailsort Stock Account,K37BR000001002,
http://statistics.data.gov.uk/id/local-authority/29UP,Tonbridge & Malling Borough Council,11/10/2021,0011043427/4,11043427, 2341.39,Royal Mail,00086200,,Purchases,Mailsort Stock Account,K37BR000001002,
http://statistics.data.gov.uk/id/local-authority/29UP,Tonbridge & Malling Borough Council,11/10/2021,0011043428/3,11043428, 4.80,Royal Mail,00086200,,Purchases,Mailsort Stock Account,K37BR000001002,
http://statistics.data.gov.uk/id/local-authority/29UP,Tonbridge & Malling Borough Council,11/10/2021,0011043428/4,11043428, 2680.42,Royal Mail,00086200,,Purchases,Mailsort Stock Account,K37BR000001002,
http://statistics.data.gov.uk/id/local-authority/29UP,Tonbridge & Malling Borough Council,11/10/2021,0011043429/3,11043429, 24.97,KCS,00054200,,Estate Management Charge,Land Review,D40PS000020400,
http://statistics.data.gov.uk/id/local-authority/29UP,Tonbridge & Malling Borough Council,11/10/2021,0011043430/1,11043430, 1592.75,Chubb Fire & Security Ltd,00115400,174605362,BRREP Servicing-IntruderAlarm,Angel Centre,M15HAP20001939,110069275
http://statistics.data.gov.uk/id/local-authority/29UP,Tonbridge & Malling Borough Council,11/10/2021,0011043431/3,11043431, 324.56,KCS,00054200,,Estate Management Charge,Land Review,D40PS000020400,
http://statistics.data.gov.uk/id/local-authority/29UP,Tonbridge & Malling Borough Council,11/10/2021,0011043432/3,11043432, 177.30,KCS,00054200,,Estate Management Charge,Land Review,D40PS000020400,
http://statistics.data.gov.uk/id/local-authority/29UP,Tonbridge & Malling Borough Council,11/10/2021,0011043433/3,11043433, 463.91,KCS,00054200,,Estate Management Charge,Land Review,D40PS000020400,
http://statistics.data.gov.uk/id/local-authority/29UP,Tonbridge & Malling Borough Council,11/10/2021,0011043434/3,11043434, 92.08,KCS,00054200,,Estate Management Charge,Land Review,D40PS000020400,
http://statistics.data.gov.uk/id/local-authority/29UP,Tonbridge & Malling Borough Council,11/10/2021,0011043435/3,11043435, 72.63,Network Rail,00871700,,Rents,Licences - Fee Paying,H27SH000022001,
http://statistics.data.gov.uk/id/local-authority/29UP,Tonbridge & Malling Borough Council,11/10/2021,0011043436/3,11043436, 19.11,Oasis Group  - Box-It South East,00966800,931579211,Purchases,Electoral Registration,D31MF000040101,
http://statistics.data.gov.uk/id/local-authority/29UP,Tonbridge & Malling Borough Council,11/10/2021,0011043437/1,11043437, 760.00,Disclosure & Barring Service,00865900,,Professional Fees,Licences - Fee Paying,H27SH000044001,
http://statistics.data.gov.uk/id/local-authority/29UP,Tonbridge & Malling Borough Council,11/10/2021,0011043438/3,11043438, 1600.10,GSF SANDYLIGHT LTD,01705300,,Temporary Staff,Admin & Prop Sals&Overheads,D01AADA0511300,
http://statistics.data.gov.uk/id/local-authority/29UP,Tonbridge & Malling Borough Council,11/10/2021,0012008164/3,12008164, 1748.75,Six Degrees Managed Data (NWF) ltd,01256900,,Telephones - Rentals,General Admin Telephones,D24GT000045005,
http://statistics.data.gov.uk/id/local-authority/29UP,Tonbridge & Malling Borough Council,11/10/2021,0012008165/3,12008165, 347.40,iHub UK Limited,01287000,,Telephones - Rentals,General Admin Telephones,D24GT000045005,
http://statistics.data.gov.uk/id/local-authority/29UP,Tonbridge & Malling Borough Council,11/10/2021,0012008166/1,12008166, 525.00,TotalMobile Limited,01725400,,Consultancy Fees,Information Technology,D27KD000044011,410032066
http://statistics.data.gov.uk/id/local-authority/29UP,Tonbridge & Malling Borough Council,11/10/2021,0012008167/1,12008167, 1170.92,NTT Cloud Communications,01794600,,Software Hire & Support,Information Technology,D27KD000044059,410031928
http://statistics.data.gov.uk/id/local-authority/29UP,Tonbridge & Malling Borough Council,11/10/2021,0012008168/1,12008168, 1900.00,Phoenix Software Ltd,00077400,755349015,Consultancy Fees,Information Technology,D27KD000044011,410032081
http://statistics.data.gov.uk/id/local-authority/29UP,Tonbridge & Malling Borough Council,11/10/2021,0012008169/1,12008169, 160.85,Insight Direct (UK) Ltd,01092700,,Software Hire & Support,Information Technology,D27KD000044059,410032055
http://statistics.data.gov.uk/id/local-authority/29UP,Tonbridge & Malling Borough Council,11/10/2021,0012008170/3,12008170, 12.04,Daisy Communications,01068100,,Telephones - General,Leybourne Lakes Country Park,B22LK000045010,
http://statistics.data.gov.uk/id/local-authority/29UP,Tonbridge & Malling Borough Council,11/10/2021,0012008170/4,12008170, 5.68,Daisy Communications,01068100,,Telephones - Rentals,General Admin Telephones,D24GT000045005,
http://statistics.data.gov.uk/id/local-authority/29UP,Tonbridge & Malling Borough Council,11/10/2021,0012008170/5,12008170, 251.90,Daisy Communications,01068100,,Telephones - Call Costs,General Admin Telephones,D24GT000045006,
http://statistics.data.gov.uk/id/local-authority/29UP,Tonbridge & Malling Borough Council,11/10/2021,0012008170/6,12008170, 84.88,Daisy Communications,01068100,,Leased Lines & Modems,Information Technology,D27KD000045011,
http://statistics.data.gov.uk/id/local-authority/29UP,Tonbridge & Malling Borough Council,11/10/2021,0012008170/7,12008170, 65.88,Daisy Communications,01068100,,Maintenance - General,Security Services Management,E09GA000040135,
http://statistics.data.gov.uk/id/local-authority/29UP,Tonbridge & Malling Borough Council,11/10/2021,0012008171/3,12008171, 12.00,Daisy Communications,01068100,,Telephones - General,Leybourne Lakes Country Park,B22LK000045010,
http://statistics.data.gov.uk/id/local-authority/29UP,Tonbridge & Malling Borough Council,11/10/2021,0012008171/4,12008171, 2.45,Daisy Communications,01068100,,Telephones - Rentals,General Admin Telephones,D24GT000045005,
http://statistics.data.gov.uk/id/local-authority/29UP,Tonbridge & Malling Borough Council,11/10/2021,0012008171/5,12008171, 252.90,Daisy Communications,01068100,,Telephones - Call Costs,General Admin Telephones,D24GT000045006,
http://statistics.data.gov.uk/id/local-authority/29UP,Tonbridge & Malling Borough Council,11/10/2021,0012008171/6,12008171, 84.88,Daisy Communications,01068100,,Leased Lines & Modems,Information Technology,D27KD000045011,
http://statistics.data.gov.uk/id/local-authority/29UP,Tonbridge & Malling Borough Council,11/10/2021,0012008171/7,12008171, 65.88,Daisy Communications,01068100,,Maintenance - General,Security Services Management,E09GA000040135,
http://statistics.data.gov.uk/id/local-authority/29UP,Tonbridge & Malling Borough Council,11/10/2021,0012008173/1,12008173, 3440.50,Bytes Software Services,01676900,,Software Hire & Support,Information Technology,D27KD000044059,410032080
http://statistics.data.gov.uk/id/local-authority/29UP,Tonbridge & Malling Borough Council,11/10/2021,0012008173/2,12008173, 1249.50,Bytes Software Services,01676900,,Software Hire & Support,Information Technology,D27KD000044059,410032080
http://statistics.data.gov.uk/id/local-authority/29UP,Tonbridge & Malling Borough Council,11/10/2021,0012008173/3,12008173, 850.50,Bytes Software Services,01676900,,Software Hire & Support,Information Technology,D27KD000044059,410032080
http://statistics.data.gov.uk/id/local-authority/29UP,Tonbridge & Malling Borough Council,11/10/2021,0012008173/4,12008173, 353.50,Bytes Software Services,01676900,,Software Hire & Support,Information Technology,D27KD000044059,410032080
http://statistics.data.gov.uk/id/local-authority/29UP,Tonbridge & Malling Borough Council,11/10/2021,0012008173/5,12008173, 619.32,Bytes Software Services,01676900,,Software Hire & Support,Information Technology,D27KD000044059,410032080
http://statistics.data.gov.uk/id/local-authority/29UP,Tonbridge & Malling Borough Council,11/10/2021,0012008174/3,12008174, 646.99,KCS,00054200,,Leasing Charges,Multi Function Devices,D22GB000044038,
http://statistics.data.gov.uk/id/local-authority/29UP,Tonbridge & Malling Borough Council,11/10/2021,0012008175/1,12008175, 559.50,KCS,00054200,,Leasing Charges,Multi Function Devices,D22GB000044038,
http://statistics.data.gov.uk/id/local-authority/29UP,Tonbridge & Malling Borough Council,11/10/2021,0012008176/1,12008176, 127.83,KCS,00054200,,Leasing Charges,Multi Function Devices,D22GB000044038,
http://statistics.data.gov.uk/id/local-authority/29UP,Tonbridge & Malling Borough Council,11/10/2021,0021037544/1,21037544, 550.00,Arnold & Court Ltd,01411300,,Maintenance of Grounds,Sports Grounds,B13ET000020402,210056431
http://statistics.data.gov.uk/id/local-authority/29UP,Tonbridge & Malling Borough Council,11/10/2021,0021037545/1,21037545, 207.29,Landscape Services Ltd,00057600,,Grounds Maintenance Contract,Cemetery,B26MP000050103,
http://statistics.data.gov.uk/id/local-authority/29UP,Tonbridge & Malling Borough Council,11/10/2021,0021037546/1,21037546, 356.20,David Hodgkinson Photographer,01068900,,Re-opening High Streets,Eco Dev & Reg Gen Bus Support,D52TDCV1948076,210056561
http://statistics.data.gov.uk/id/local-authority/29UP,Tonbridge & Malling Borough Council,11/10/2021,0021037547/1,21037547, 162.50,Medway Valley Countryside PartnershipKCC,00780000,,Maintenance of Grounds,Open Spaces & Amenity Areas,B22LE000020402,210056484
http://statistics.data.gov.uk/id/local-authority/29UP,Tonbridge & Malling Borough Council,11/10/2021,0021037548/3,21037548, 242.81,KCC - L.A.S.E.R Commercial Services ,00184300,,Electricity,Leybourne Lakes Country Park,B22LK000021002,
http://statistics.data.gov.uk/id/local-authority/29UP,Tonbridge & Malling Borough Council,11/10/2021,0021037549/3,21037549, 65.53,KCC - L.A.S.E.R Commercial Services ,00184300,,Electricity,Open Spaces & Amenity Areas,B22LE000021002,
http://statistics.data.gov.uk/id/local-authority/29UP,Tonbridge & Malling Borough Council,11/10/2021,0021037550/1,21037550, 345.95,Metrosigns 2000,00893000,,Maintenance of Grounds,Open Spaces & Amenity Areas,B22LE000020402,210056518
http://statistics.data.gov.uk/id/local-authority/29UP,Tonbridge & Malling Borough Council,11/10/2021,0021037551/1,21037551, 350.00,Rob Steele T/A Radii Skatepark Repairs,01683100,,Maintenance of Play Equipment,Open Spaces & Amenity Areas,B22LE000020503,210056557
http://statistics.data.gov.uk/id/local-authority/29UP,Tonbridge & Malling Borough Council,11/10/2021,0021037552/1,21037552, 46.00,South East Water Ltd,01330300,,Maintenance of Grounds,Haysden Country Park,B22LC000020402,210056023
http://statistics.data.gov.uk/id/local-authority/29UP,Tonbridge & Malling Borough Council,11/10/2021,0021037553/3,21037553, 42.71,Toilets+ Ltd,01039000,,Maintenance of Grounds,Leybourne Lakes Country Park,B22LK000020402,
http://statistics.data.gov.uk/id/local-authority/29UP,Tonbridge & Malling Borough Council,11/10/2021,0021037554/1,21037554, 437.75,Trafalgar Cleaning Equipment Ltd,01160900,,Initial Furniture & Equipment,Capital Renewals Leisure,P05KGBC0209906,210056544
http://statistics.data.gov.uk/id/local-authority/29UP,Tonbridge & Malling Borough Council,11/10/2021,0021037555/1,21037555, 380.00,Treework,00560700,,Health & Safety - Trees,Countryside/Woodland Mgt,B22LG000044045,210056567
http://statistics.data.gov.uk/id/local-authority/29UP,Tonbridge & Malling Borough Council,11/10/2021,0021037556/1,21037556, 15.00,Weddle and Co,00714900,,Maintenance of Grounds,Open Spaces & Amenity Areas,B22LE000020402,210056495
http://statistics.data.gov.uk/id/local-authority/29UP,Tonbridge & Malling Borough Council,11/10/2021,0021037557/1,21037557, 180.00,Weddle and Co,00714900,,Maintenance of Grounds,Open Spaces & Amenity Areas,B22LE000020402,210056520
http://statistics.data.gov.uk/id/local-authority/29UP,Tonbridge & Malling Borough Council,11/10/2021,0021037558/1,21037558, 1235.00,Westway Fencing and Garden Services,00159700,,Maintenance of Grounds,Open Spaces & Amenity Areas,B22LE000020402,210056287
http://statistics.data.gov.uk/id/local-authority/29UP,Tonbridge & Malling Borough Council,11/10/2021,0021037559/3,21037559, 6.00,G.L. & R.G. Bourne,00737500,,Maintenance of Grounds,Haysden Country Park,B22LC000020402,
http://statistics.data.gov.uk/id/local-authority/29UP,Tonbridge & Malling Borough Council,11/10/2021,0021037560/1,21037560, 544.98,G.L. & R.G. Bourne,00737500,,Gates / Security,Haysden Country Park,B22LC000044017,210056214
http://statistics.data.gov.uk/id/local-authority/29UP,Tonbridge & Malling Borough Council,11/10/2021,0021037561/1,21037561, 74.71,G.L. & R.G. Bourne,00737500,,Gates / Security,Haysden Country Park,B22LC000044017,210056214
http://statistics.data.gov.uk/id/local-authority/29UP,Tonbridge & Malling Borough Council,11/10/2021,0021037562/1,21037562, 4.80,G.L. & R.G. Bourne,00737500,,Gates / Security,Haysden Country Park,B22LC000044017,210056214
http://statistics.data.gov.uk/id/local-authority/29UP,Tonbridge & Malling Borough Council,11/10/2021,0021037564/3,21037564, 137.20,Countrystyle Group,00835900,781981681,Trade Refuse Charges,Leybourne Lakes Country Park,B22LK000044008,
http://statistics.data.gov.uk/id/local-authority/29UP,Tonbridge & Malling Borough Council,11/10/2021,0021037565/1,21037565, 1564.40,Green Oak Services,01635000,,Maintenance of Grounds,Open Spaces & Amenity Areas,B22LE000020402,210056549
http://statistics.data.gov.uk/id/local-authority/29UP,Tonbridge & Malling Borough Council,11/10/2021,0021037566/1,21037566, 19.06,Lamberhurst Engineering Ltd,01306400,,Purchases,Haysden Country Park,B22LC000040101,210056552
http://statistics.data.gov.uk/id/local-authority/29UP,Tonbridge & Malling Borough Council,11/10/2021,0021037567/3,21037567, 600.00,Monitor Pest Control Ltd,01476700,,Rodent Control,Haysden Country Park,B22LC000044053,
http://statistics.data.gov.uk/id/local-authority/29UP,Tonbridge & Malling Borough Council,11/10/2021,0021037568/3,21037568, 340.00,Monitor Pest Control Ltd,01476700,,Rodent Control,Open Spaces & Amenity Areas,B22LE000044053,
http://statistics.data.gov.uk/id/local-authority/29UP,Tonbridge & Malling Borough Council,11/10/2021,0021037569/1,21037569, 29190.00,Valley Landscape Management Provincial,01054600,,Contract Payments,LLCP Path Improvements,P05FH000009904,210056408
http://statistics.data.gov.uk/id/local-authority/29UP,Tonbridge & Malling Borough Council,11/10/2021,0021037569/2,21037569, 10709.00,Valley Landscape Management Provincial,01054600,,Contract Payments,LLCP Path Improvements,P05FH000009904,210056408
http://statistics.data.gov.uk/id/local-authority/29UP,Tonbridge & Malling Borough Council,11/10/2021,0021037569/3,21037569, 8834.00,Valley Landscape Management Provincial,01054600,,Contract Payments,LLCP Path Improvements,P05FH000009904,210056408
http://statistics.data.gov.uk/id/local-authority/29UP,Tonbridge & Malling Borough Council,11/10/2021,0021037570/1,21037570, 23200.00,Reesink UK Ltd,00052300,,Initial Furniture & Equipment,Capital Renewals Leisure,P05KGBC0309906,220003130
http://statistics.data.gov.uk/id/local-authority/29UP,Tonbridge & Malling Borough Council,11/10/2021,0021037571/1,21037571, 50.00,G Purser - Carp & Build Services,01589900,,Events Support,Events Development,B41TJ000044041,
http://statistics.data.gov.uk/id/local-authority/29UP,Tonbridge & Malling Borough Council,11/10/2021,0021037572/1,21037572, 200.00,SWS Countryside & Landscape,01567200,,Health & Safety - Trees,Countryside/Woodland Mgt,B22LG000044045,210056439
http://statistics.data.gov.uk/id/local-authority/29UP,Tonbridge & Malling Borough Council,11/10/2021,0021037573/1,21037573, 300.00,SWS Countryside & Landscape,01567200,,Health & Safety - Trees,Countryside/Woodland Mgt,B22LG000044045,
http://statistics.data.gov.uk/id/local-authority/29UP,Tonbridge & Malling Borough Council,11/10/2021,0021037574/1,21037574, 44000.00,SWS Countryside & Landscape,01567200,,Health & Safety - Trees,Countryside/Woodland Mgt,B22LG000044045,210056496
http://statistics.data.gov.uk/id/local-authority/29UP,Tonbridge & Malling Borough Council,11/10/2021,0021037575/1,21037575, 2250.00,SWS Countryside & Landscape,01567200,,Health & Safety - Trees,Countryside/Woodland Mgt,B22LG000044045,210056508
http://statistics.data.gov.uk/id/local-authority/29UP,Tonbridge & Malling Borough Council,11/10/2021,0021037576/1,21037576, 210.00,SWS Countryside & Landscape,01567200,,Health & Safety - Trees,Countryside/Woodland Mgt,B22LG000044045,
http://statistics.data.gov.uk/id/local-authority/29UP,Tonbridge & Malling Borough Council,11/10/2021,0021037577/1,21037577, 550.00,SWS Countryside & Landscape,01567200,,Maintenance of Grounds,Open Spaces & Amenity Areas,B22LE000020402,210056511
http://statistics.data.gov.uk/id/local-authority/29UP,Tonbridge & Malling Borough Council,11/10/2021,0022025930/3,22025930, 140.45,South East Water Ltd,01330300,,Water Sampling,Environmental Protection,H32SN000054010,
http://statistics.data.gov.uk/id/local-authority/29UP,Tonbridge & Malling Borough Council,11/10/2021,0022025931/1,22025931, 13.30,KCS,00054200,,Stationery,Env Hlth & Hsg Sals&Overheads,D01AVDV0643003,220003163
http://statistics.data.gov.uk/id/local-authority/29UP,Tonbridge & Malling Borough Council,11/10/2021,0022025932/1,22025932, 2580.00,Higher Elevation LTD,01298700,,Other Expenses,Disabled Facilities Grant Mand,P03AC000009908,
http://statistics.data.gov.uk/id/local-authority/29UP,Tonbridge & Malling Borough Council,11/10/2021,0022025933/1,22025933, 6047.94,Elite Complete Build LTD,01625900,,Other Expenses,Disabled Facilities Grant Mand,P03AC000009908,
http://statistics.data.gov.uk/id/local-authority/29UP,Tonbridge & Malling Borough Council,11/10/2021,0022025934/1,22025934, 1170.42,Peabody South East LTD,01680900,,Other Expenses,Disabled Facilities Grant Mand,P03AC000009908,
http://statistics.data.gov.uk/id/local-authority/29UP,Tonbridge & Malling Borough Council,11/10/2021,0022025935/1,22025935, 29997.00,REDACTED PERSONAL DATA,01821200,,Other Expenses,Disabled Facilities Grant Mand,P03AC000009908,
http://statistics.data.gov.uk/id/local-authority/29UP,Tonbridge & Malling Borough Council,11/10/2021,0022025936/1,22025936, 3.00,Tonbridge & Malling Borough Council,00103700,,Professional Fees,Private Sector Housing Renewal,C03BD000044001,
http://statistics.data.gov.uk/id/local-authority/29UP,Tonbridge & Malling Borough Council,11/10/2021,0022025937/1,22025937, 4521.50,House to Home Lettings Ltd ,01647600,,Temporary Accommodation,Homelessness,C01AA000044051,
http://statistics.data.gov.uk/id/local-authority/29UP,Tonbridge & Malling Borough Council,11/10/2021,0022025938/1,22025938, 71782.00,Paramount Independent Property Suppliers,01595300,,Temporary Accommodation,Homelessness,C01AA000044051,
http://statistics.data.gov.uk/id/local-authority/29UP,Tonbridge & Malling Borough Council,11/10/2021,0022025939/1,22025939, 961.00,Kent Property Services,01722500,,Temporary Accommodation,Homelessness,C01AA000044051,
http://statistics.data.gov.uk/id/local-authority/29UP,Tonbridge & Malling Borough Council,11/10/2021,0022025940/3,22025940, 150.00,Monitor Pest Control Ltd,01476700,,Other Expenses,Pest Control,H24SE000048010,
http://statistics.data.gov.uk/id/local-authority/29UP,Tonbridge & Malling Borough Council,11/10/2021,0022025941/3,22025941, 19.88,Specialist Hygiene Services,01466100,,Cleaning & Domestic Supplies,Haysden Country Park,B22LC000026001,
http://statistics.data.gov.uk/id/local-authority/29UP,Tonbridge & Malling Borough Council,11/10/2021,0022025941/4,22025941, 7090.25,Specialist Hygiene Services,01466100,,Contract Payments,Public Conveniences,H22SC000054001,
http://statistics.data.gov.uk/id/local-authority/29UP,Tonbridge & Malling Borough Council,11/10/2021,0022025942/1,22025942, 6503.00,Simply Rented Ltd ,01691400,,Temporary Accommodation,Homelessness,C01AA000044051,
http://statistics.data.gov.uk/id/local-authority/29UP,Tonbridge & Malling Borough Council,11/10/2021,0022025943/1,22025943, 2212.32,The Care Group-Housing & Care Trust,01699600,,Professional Fees,Homelessness,C01AA000044001,
http://statistics.data.gov.uk/id/local-authority/29UP,Tonbridge & Malling Borough Council,11/10/2021,0022025944/1,22025944, 28071.50,Social & Community Care,01768400,,Temporary Accommodation,Homelessness,C01AA000044051,
http://statistics.data.gov.uk/id/local-authority/29UP,Tonbridge & Malling Borough Council,11/10/2021,0022025945/1,22025945, 3657.00,Under My Roof Ltd,01806700,,Temporary Accommodation,Homelessness,C01AA000044051,
http://statistics.data.gov.uk/id/local-authority/29UP,Tonbridge & Malling Borough Council,11/10/2021,0022025946/3,22025946, 1801.80,Ward Security LTD,01490000,,Dog Warden,Street Scene,H23SD000044100,
http://statistics.data.gov.uk/id/local-authority/29UP,Tonbridge & Malling Borough Council,11/10/2021,0022025947/3,22025947, 33.48,Biffa Waste Services Ltd,01284500,,Trade Refuse Charges,Cleaning & Security,D21FD000044008,
http://statistics.data.gov.uk/id/local-authority/29UP,Tonbridge & Malling Borough Council,11/10/2021,0022025948/1,22025948, 696.58,Castle Water,01696500,,Water Charges (Metered),Public Conveniences,H22SCH01224001,
http://statistics.data.gov.uk/id/local-authority/29UP,Tonbridge & Malling Borough Council,11/10/2021,0022025948/2,22025948, 40.00,Castle Water,01696500,,Water Charges (Metered),Public Conveniences,H22SCH01224001,
http://statistics.data.gov.uk/id/local-authority/29UP,Tonbridge & Malling Borough Council,11/10/2021,0022025949/3,22025949, 444.40,Countrystyle Group,00835900,781981681,Plastic Recycling,Dry Recycling,H34SR000054019,
http://statistics.data.gov.uk/id/local-authority/29UP,Tonbridge & Malling Borough Council,11/10/2021,0031018268/3,31018268, 405.86,Arnold & Court Ltd,01411300,,Repair & Mtce of Fixed Plant,Boro Highways & Emergency Oper,E01AA000020501,
http://statistics.data.gov.uk/id/local-authority/29UP,Tonbridge & Malling Borough Council,11/10/2021,0031018268/4,31018268, 57.14,Arnold & Court Ltd,01411300,,Purchases,Parking On-Street,E10HD000040101,
http://statistics.data.gov.uk/id/local-authority/29UP,Tonbridge & Malling Borough Council,11/10/2021,0031018269/3,31018269, 57.14,Arnold & Court Ltd,01411300,,Premises Repairs & Maintenance,Parking Off-Street,E10HA000020601,
http://statistics.data.gov.uk/id/local-authority/29UP,Tonbridge & Malling Borough Council,11/10/2021,0031018269/4,31018269, 323.58,Arnold & Court Ltd,01411300,,Premises Repairs & Maintenance,Parking Off-Street,E10HAE02220601,
http://statistics.data.gov.uk/id/local-authority/29UP,Tonbridge & Malling Borough Council,11/10/2021,0031018269/5,31018269, 57.14,Arnold & Court Ltd,01411300,,Purchases,Parking On-Street,E10HD000040101,
http://statistics.data.gov.uk/id/local-authority/29UP,Tonbridge & Malling Borough Council,11/10/2021,0031018269/6,31018269, 57.14,Arnold & Court Ltd,01411300,,BRREP General Maintenance,Land Review,M15MAP10001900,
http://statistics.data.gov.uk/id/local-authority/29UP,Tonbridge & Malling Borough Council,11/10/2021,0031018270/3,31018270, 57.14,Arnold & Court Ltd,01411300,,Repair & Mtce of Fixed Plant,Boro Highways & Emergency Oper,E01AA000020501,
http://statistics.data.gov.uk/id/local-authority/29UP,Tonbridge & Malling Borough Council,11/10/2021,0031018270/4,31018270, 57.14,Arnold & Court Ltd,01411300,,Maintenance of Grounds,Parking Off-Street,E10HA000020402,
http://statistics.data.gov.uk/id/local-authority/29UP,Tonbridge & Malling Borough Council,11/10/2021,0031018270/5,31018270, 114.30,Arnold & Court Ltd,01411300,,Premises Repairs & Maintenance,Parking Off-Street,E10HA000020601,
http://statistics.data.gov.uk/id/local-authority/29UP,Tonbridge & Malling Borough Council,11/10/2021,0031018270/6,31018270, 171.42,Arnold & Court Ltd,01411300,,Purchases,Parking On-Street,E10HD000040101,
http://statistics.data.gov.uk/id/local-authority/29UP,Tonbridge & Malling Borough Council,11/10/2021,0031018271/3,31018271, 600.00,Arnold & Court Ltd,01411300,,Premises Repairs & Maintenance,Parking Off-Street,E10HAE02820601,
http://statistics.data.gov.uk/id/local-authority/29UP,Tonbridge & Malling Borough Council,11/10/2021,0031018272/3,31018272, 118.58,KCC - L.A.S.E.R Commercial Services ,00184300,,Electricity,Parking Off-Street,E10HA000021002,
http://statistics.data.gov.uk/id/local-authority/29UP,Tonbridge & Malling Borough Council,11/10/2021,0031018273/3,31018273, 500.00,SKF Contractors Ltd,00092000,,Premises Repairs & Maintenance,Parking Off-Street,E10HA000020601,
http://statistics.data.gov.uk/id/local-authority/29UP,Tonbridge & Malling Borough Council,11/10/2021,0031018274/3,31018274, 30.00,Door to Door Mobile Tyres,01591400,234388105,Winter Maintenance,Parking Off-Street,E10HA000020701,
http://statistics.data.gov.uk/id/local-authority/29UP,Tonbridge & Malling Borough Council,11/10/2021,0031018275/1,31018275, 540.00,Flowbird Smart City UK Limited,00898700,,Purchases,Parking Off-Street,E10HA000040101,310042746
http://statistics.data.gov.uk/id/local-authority/29UP,Tonbridge & Malling Borough Council,11/10/2021,0031018275/2,31018275, 35.00,Flowbird Smart City UK Limited,00898700,,Purchases,Parking Off-Street,E10HA000040101,310042746
http://statistics.data.gov.uk/id/local-authority/29UP,Tonbridge & Malling Borough Council,11/10/2021,0031018276/3,31018276, 105.00,Monitor Pest Control Ltd,01476700,,Maintenance of Grounds,Parking Off-Street,E10HA000020402,
http://statistics.data.gov.uk/id/local-authority/29UP,Tonbridge & Malling Borough Council,11/10/2021,0031018277/3,31018277, 140.00,Monitor Pest Control Ltd,01476700,,Maintenance of Grounds,Parking Off-Street,E10HA000020402,
http://statistics.data.gov.uk/id/local-authority/29UP,Tonbridge & Malling Borough Council,11/10/2021,0031018278/1,31018278, 284.56,Patrol,01189800,,Adjudication & Enforcement Ser,Parking Off-Street,E10HA000044230,
http://statistics.data.gov.uk/id/local-authority/29UP,Tonbridge & Malling Borough Council,11/10/2021,0031018278/2,31018278, 427.34,Patrol,01189800,,Adjudication & Enforcement Ser,Parking On-Street,E10HD000044230,
http://statistics.data.gov.uk/id/local-authority/29UP,Tonbridge & Malling Borough Council,11/10/2021,0031018280/1,31018280, 500.00,Traffic Enforcement Centre,00604200,,Adjudication & Enforcement Ser,Parking Off-Street,E10HA000044230,
http://statistics.data.gov.uk/id/local-authority/29UP,Tonbridge & Malling Borough Council,11/10/2021,0031018280/2,31018280, 500.00,Traffic Enforcement Centre,00604200,,Adjudication & Enforcement Ser,Parking On-Street,E10HD000044230,
http://statistics.data.gov.uk/id/local-authority/29UP,Tonbridge & Malling Borough Council,11/10/2021,0031018282/1,31018282, 675.00,Archway Highway Services Ltd,01398000,,Premises Repairs & Maintenance,Parking On-Street,E10HD000020601,310042744
http://statistics.data.gov.uk/id/local-authority/29UP,Tonbridge & Malling Borough Council,11/10/2021,0031018282/2,31018282, 510.00,Archway Highway Services Ltd,01398000,,Premises Repairs & Maintenance,Parking On-Street,E10HD000020601,310042744
http://statistics.data.gov.uk/id/local-authority/29UP,Tonbridge & Malling Borough Council,11/10/2021,0031018283/3,31018283, 150.00,Monitor Pest Control Ltd,01476700,,Maintenance of Grounds,Parking Off-Street,E10HA000020402,
http://statistics.data.gov.uk/id/local-authority/29UP,Tonbridge & Malling Borough Council,11/10/2021,0031018284/1,31018284, 869.55,CDER Group,01773300,,Adjudication & Enforcement Ser,Parking Off-Street,E10HA000044230,
http://statistics.data.gov.uk/id/local-authority/29UP,Tonbridge & Malling Borough Council,11/10/2021,0031018286/1,31018286, 410.00,Wellden Land Surveys,01410600,,Professional Fees,Boro Drainage & Land Drainage,E20MA000044001,310042644
http://statistics.data.gov.uk/id/local-authority/29UP,Tonbridge & Malling Borough Council,11/10/2021,0032009301/3,32009301, 1250.00,Tunbridge Wells Borough Council,00844600,,Temporary Staff,Planning Sals&Overheads,D01AJDJ0311300,
http://statistics.data.gov.uk/id/local-authority/29UP,Tonbridge & Malling Borough Council,11/10/2021,0032009308/1,32009308, 348.84,KM Media Group Ltd,00053900,,Advertising General,Development Management,A01ABZ99944216,320003342
http://statistics.data.gov.uk/id/local-authority/29UP,Tonbridge & Malling Borough Council,11/10/2021,0032009309/1,32009309, 182.13,KM Media Group Ltd,00053900,,Advertising General,Development Management,A01ABZ99944216,320003351
http://statistics.data.gov.uk/id/local-authority/29UP,Tonbridge & Malling Borough Council,11/10/2021,0032009310/3,32009310, 1496.80,The Oyster Partnership,01196400,,Temporary Staff,Planning Sals&Overheads,D01AJDJ0111300,
http://statistics.data.gov.uk/id/local-authority/29UP,Tonbridge & Malling Borough Council,11/10/2021,0032009311/1,32009311, 150.00,Office of National Statistics,01820900,,Local Dev Framework Expenses,Preparation of Local Dev Frame,A01AE000044023,320003356
http://statistics.data.gov.uk/id/local-authority/29UP,Tonbridge & Malling Borough Council,11/10/2021,0041033622/3,41033622, 925.00,Morgan Hunt UK Ltd,01086900,,Temporary Staff,Finance Sals&Overheads,D01AFDF1111300,
http://statistics.data.gov.uk/id/local-authority/29UP,Tonbridge & Malling Borough Council,11/10/2021,0041033623/3,41033623, 980.50,Morgan Hunt UK Ltd,01086900,,Temporary Staff,Finance Sals&Overheads,D01AFDF1111300,
http://statistics.data.gov.uk/id/local-authority/29UP,Tonbridge & Malling Borough Council,11/10/2021,0041033632/3,41033632, 495.00,KH Recruitment Ltd,01738900,,Temporary Staff,Finance Sals&Overheads,D01AFDF1111300,
http://statistics.data.gov.uk/id/local-authority/29UP,Tonbridge & Malling Borough Council,11/10/2021,0041033633/3,41033633, 65.00,King & Shaxson Treasury Solutions,01524000,,Professional Fees,Treasury Management,D43QT000044001,
http://statistics.data.gov.uk/id/local-authority/29UP,Tonbridge & Malling Borough Council,11/10/2021,0041033640/3,41033640, 101.82,Adelante Software Limited,01393800,812115871,Credit Card Commission,Banking Arrangements,D43QK000044082,
http://statistics.data.gov.uk/id/local-authority/29UP,Tonbridge & Malling Borough Council,11/10/2021,0041033641/3,41033641, 1555.45,Maidstone Borough Council,01173700,,Bailiffs Commission,Local Revenue & NNDR Collect,D41QA000044075,
http://statistics.data.gov.uk/id/local-authority/29UP,Tonbridge & Malling Borough Council,11/10/2021,0041033642/3,41033642, 347.40,Rundle & Co Ltd,00087200,,Bailiffs Commission,Local Revenue & NNDR Collect,D41QA000044075,
http://statistics.data.gov.uk/id/local-authority/29UP,Tonbridge & Malling Borough Council,11/10/2021,0041033652/1,41033652, 3925.96,National Westminster Bank Plc,00069400,,Bank Charges,Banking Arrangements,D43QK000044222,
http://statistics.data.gov.uk/id/local-authority/29UP,Tonbridge & Malling Borough Council,11/10/2021,0041033652/2,41033652, 0.44,National Westminster Bank Plc,00069400,,Bank Charges,Banking Arrangements,D43QK000044222,
http://statistics.data.gov.uk/id/local-authority/29UP,Tonbridge & Malling Borough Council,11/10/2021,0051008616/1,51008616, 180.00,Hoey Ainscough Associates Ltd,01473400,,Ext Fees/Prof & Tech,Training,D10DCDA0013561,510010504
http://statistics.data.gov.uk/id/local-authority/29UP,Tonbridge & Malling Borough Council,11/12/2021,0041033655/1,41033655, 15.20,HSBC Bank Plc,01740800,,Bank Charges,Banking Arrangements,D43QK000044222,
http://statistics.data.gov.uk/id/local-authority/29UP,Tonbridge & Malling Borough Council,11/17/2021,0011043440/1,11043440, 30.00,Chris Woodward,01812700,,Hospitality,Mayoral & Other Member Support,D29LX000048003,
http://statistics.data.gov.uk/id/local-authority/29UP,Tonbridge & Malling Borough Council,11/17/2021,0011043441/1,11043441, 355.00,Southern Lightning Engineers Ltd,00094000,,BRREP Servicing-Lightning Prot,Angel Centre,M15HAP20001942,110069140
http://statistics.data.gov.uk/id/local-authority/29UP,Tonbridge & Malling Borough Council,11/17/2021,0011043442/1,11043442, 238.00,Southern Lightning Engineers Ltd,00094000,,BRREP Servicing-Lightning Prot,Tonbridge Swimming Pool,M15HBP20001942,110069165
http://statistics.data.gov.uk/id/local-authority/29UP,Tonbridge & Malling Borough Council,11/17/2021,0011043443/1,11043443, 955.60,Glaze-Tech Services Ltd,00779500,,BRREP Window/door repairs,Tonbridge Swimming Pool,M15HBP20001919,110069175
http://statistics.data.gov.uk/id/local-authority/29UP,Tonbridge & Malling Borough Council,11/17/2021,0011043444/1,11043444, 1837.00,Loxton Installations Ltd,01278800,,BRREP Serv Internal Lighting,Larkfield Leisure Centre,M15HDP20001957,110069185
http://statistics.data.gov.uk/id/local-authority/29UP,Tonbridge & Malling Borough Council,11/17/2021,0011043445/1,11043445, 574.10,Broadwater Technologies,01534500,,BRREP Plant renewals,Larkfield Leisure Centre,M15HDP20001909,110069279
http://statistics.data.gov.uk/id/local-authority/29UP,Tonbridge & Malling Borough Council,11/17/2021,0011043446/1,11043446, 940.00,Willow Pumps Ltd,00114100,,BRREP Servicing - Pumping Stn,Ton Sportsgrnd Bldgs / Toilets,M15HCP20001931,110069274
http://statistics.data.gov.uk/id/local-authority/29UP,Tonbridge & Malling Borough Council,11/17/2021,0011043447/1,11043447, 155.00,Record UK Ltd,01116900,,BRREP Servicing-entrance doors,Larkfield Leisure Centre,M15HDP20001927,110069226
http://statistics.data.gov.uk/id/local-authority/29UP,Tonbridge & Malling Borough Council,11/17/2021,0011043448/1,11043448, 78.50,Triple S Lift Services,01344900,,BRREP Servicing - lifts,Gibson Building East,M15KGP20001930,110069280
http://statistics.data.gov.uk/id/local-authority/29UP,Tonbridge & Malling Borough Council,11/17/2021,0011043449/1,11043449, 55.00,Triple S Lift Services,01344900,,BRREP Servicing - lifts,Angel Centre,M15HAP20001930,110068599
http://statistics.data.gov.uk/id/local-authority/29UP,Tonbridge & Malling Borough Council,11/17/2021,0011043452/1,11043452, 530.00,Thomson Snell & Passmore,00101700,,Legal Fees,Legal Sals&Overheads,D01ARDR0044002,
http://statistics.data.gov.uk/id/local-authority/29UP,Tonbridge & Malling Borough Council,11/17/2021,0011043453/1,11043453, 79.00,BML Building Services Ltd,01505000,,BRREP Resp - Vandal / Break-In,Pleasure Grounds & Open Spaces,M15HHP50001998,
http://statistics.data.gov.uk/id/local-authority/29UP,Tonbridge & Malling Borough Council,11/17/2021,0011043454/1,11043454, 79.00,BML Building Services Ltd,01505000,,BRREP Response - General,Gibson Building West,M15KBP50001997,
http://statistics.data.gov.uk/id/local-authority/29UP,Tonbridge & Malling Borough Council,11/17/2021,0011043455/1,11043455, 1600.10,GSF SANDYLIGHT LTD,01705300,,Temporary Staff,Admin & Prop Sals&Overheads,D01AADA0511300,
http://statistics.data.gov.uk/id/local-authority/29UP,Tonbridge & Malling Borough Council,11/17/2021,0011043457/1,11043457, 1650.00,KH Recruitment Ltd,01738900,,Temporary Staff,Admin & Prop Sals&Overheads,D01AADA1211300,
http://statistics.data.gov.uk/id/local-authority/29UP,Tonbridge & Malling Borough Council,11/17/2021,0011043458/1,11043458, 1650.00,KH Recruitment Ltd,01738900,,Temporary Staff,Admin & Prop Sals&Overheads,D01AADA1211300,
http://statistics.data.gov.uk/id/local-authority/29UP,Tonbridge & Malling Borough Council,11/17/2021,0011043459/1,11043459, 1320.00,KH Recruitment Ltd,01738900,,Temporary Staff,Admin & Prop Sals&Overheads,D01AADA1211300,
http://statistics.data.gov.uk/id/local-authority/29UP,Tonbridge & Malling Borough Council,11/17/2021,0011043460/1,11043460, 155.88,TwoFold Limited,00518000,,Purchases,Printing,D22GA000040101,
http://statistics.data.gov.uk/id/local-authority/29UP,Tonbridge & Malling Borough Council,11/17/2021,0011043461/1,11043461, 127.20,Biffa Waste Services Ltd,01284500,,Trade Refuse Charges,Cleaning & Security,D21FD000044008,
http://statistics.data.gov.uk/id/local-authority/29UP,Tonbridge & Malling Borough Council,11/17/2021,0011043462/1,11043462, 46.45,Biffa Waste Services Ltd,01284500,,Trade Refuse Charges,Cleaning & Security,D21FD000044008,
http://statistics.data.gov.uk/id/local-authority/29UP,Tonbridge & Malling Borough Council,11/17/2021,0011043463/1,11043463, 64.96,Biffa Waste Services Ltd,01284500,,Trade Refuse Charges,Cleaning & Security,D21FD000044008,
http://statistics.data.gov.uk/id/local-authority/29UP,Tonbridge & Malling Borough Council,11/17/2021,0011043464/1,11043464, 46.45,Biffa Waste Services Ltd,01284500,,Trade Refuse Charges,Cleaning & Security,D21FD000044008,
http://statistics.data.gov.uk/id/local-authority/29UP,Tonbridge & Malling Borough Council,11/17/2021,0011043465/7,11043465, 882.50,Traffic Management Services Ltd,01818900,,BRREP General Maintenance,Land Review,M15MAP40101900,
http://statistics.data.gov.uk/id/local-authority/29UP,Tonbridge & Malling Borough Council,11/17/2021,0011043466/1,11043466, 2475.42,EDF Energy Customers plc,01035000,,Estate Management Charge,Land Review,D40PS000020400,
http://statistics.data.gov.uk/id/local-authority/29UP,Tonbridge & Malling Borough Council,11/17/2021,0011043467/1,11043467, 2483.54,EDF Energy Customers plc,01035000,,Estate Management Charge,Land Review,D40PS000020400,
http://statistics.data.gov.uk/id/local-authority/29UP,Tonbridge & Malling Borough Council,11/17/2021,0011043468/1,11043468, 201.00,Biffa Waste Services Ltd,01284500,,Trade Refuse Charges,Cleaning & Security,D21FD000044008,
http://statistics.data.gov.uk/id/local-authority/29UP,Tonbridge & Malling Borough Council,11/17/2021,0011043469/1,11043469, 335.00,Biffa Waste Services Ltd,01284500,,Trade Refuse Charges,Cleaning & Security,D21FD000044008,
http://statistics.data.gov.uk/id/local-authority/29UP,Tonbridge & Malling Borough Council,11/17/2021,0011043470/1,11043470, 250.18,Antalis,01556800,317187204,Purchases - Paper,Printing,D22GA000040102,
http://statistics.data.gov.uk/id/local-authority/29UP,Tonbridge & Malling Borough Council,11/17/2021,0011043471/3,11043471, 868.77,Ricoh UK Ltd,01402300,,Maintenance - General,Printing,D22GA000040135,
http://statistics.data.gov.uk/id/local-authority/29UP,Tonbridge & Malling Borough Council,11/17/2021,0011043472/3,11043472, 1134.00,Venn Group Ltd,00914300,,Temporary Staff,Legal Sals&Overheads,D01ARDR0011300,
http://statistics.data.gov.uk/id/local-authority/29UP,Tonbridge & Malling Borough Council,11/17/2021,0011043473/3,11043473, 1134.00,Venn Group Ltd,00914300,,Temporary Staff,Legal Sals&Overheads,D01ARDR0011300,
http://statistics.data.gov.uk/id/local-authority/29UP,Tonbridge & Malling Borough Council,11/17/2021,0012008177/1,12008177, 3.82,Amazon EU SARL,01738400,,Purchases,Information Technology,D27KD000040101,410032083
http://statistics.data.gov.uk/id/local-authority/29UP,Tonbridge & Malling Borough Council,11/17/2021,0012008177/2,12008177, 4.15,Amazon EU SARL,01738400,,Delivery Expenses,Information Technology,D27KD000044069,410032083
http://statistics.data.gov.uk/id/local-authority/29UP,Tonbridge & Malling Borough Council,11/17/2021,0012008178/1,12008178, 10.28,KCS,00054200,,Copy Charges,Multi Function Devices,D22GB000040125,
http://statistics.data.gov.uk/id/local-authority/29UP,Tonbridge & Malling Borough Council,11/17/2021,0012008178/2,12008178, 105.51,KCS,00054200,,Leasing Charges,Multi Function Devices,D22GB000044038,
http://statistics.data.gov.uk/id/local-authority/29UP,Tonbridge & Malling Borough Council,11/17/2021,0012008179/1,12008179, 13.12,KCS,00054200,,Copy Charges,Multi Function Devices,D22GB000040125,
http://statistics.data.gov.uk/id/local-authority/29UP,Tonbridge & Malling Borough Council,11/17/2021,0012008179/2,12008179, 130.63,KCS,00054200,,Leasing Charges,Multi Function Devices,D22GB000044038,
http://statistics.data.gov.uk/id/local-authority/29UP,Tonbridge & Malling Borough Council,11/17/2021,0012008180/1,12008180, 140.45,KCS,00054200,,Copy Charges,Multi Function Devices,D22GB000040125,
http://statistics.data.gov.uk/id/local-authority/29UP,Tonbridge & Malling Borough Council,11/17/2021,0012008180/2,12008180, 130.63,KCS,00054200,,Leasing Charges,Multi Function Devices,D22GB000044038,
http://statistics.data.gov.uk/id/local-authority/29UP,Tonbridge & Malling Borough Council,11/17/2021,0012008181/1,12008181, 61.91,KCS,00054200,,Copy Charges,Multi Function Devices,D22GB000040125,
http://statistics.data.gov.uk/id/local-authority/29UP,Tonbridge & Malling Borough Council,11/17/2021,0012008181/2,12008181, 130.63,KCS,00054200,,Leasing Charges,Multi Function Devices,D22GB000044038,
http://statistics.data.gov.uk/id/local-authority/29UP,Tonbridge & Malling Borough Council,11/17/2021,0012008182/1,12008182, 14.45,KCS,00054200,,Copy Charges,Multi Function Devices,D22GB000040125,
http://statistics.data.gov.uk/id/local-authority/29UP,Tonbridge & Malling Borough Council,11/17/2021,0012008182/2,12008182, 122.61,KCS,00054200,,Leasing Charges,Multi Function Devices,D22GB000044038,
http://statistics.data.gov.uk/id/local-authority/29UP,Tonbridge & Malling Borough Council,11/17/2021,0012008183/1,12008183, 1.94,KCS,00054200,,Copy Charges,Multi Function Devices,D22GB000040125,
http://statistics.data.gov.uk/id/local-authority/29UP,Tonbridge & Malling Borough Council,11/17/2021,0012008183/2,12008183, 122.61,KCS,00054200,,Leasing Charges,Multi Function Devices,D22GB000044038,
http://statistics.data.gov.uk/id/local-authority/29UP,Tonbridge & Malling Borough Council,11/17/2021,0012008184/1,12008184, 11.22,KCS,00054200,,Copy Charges,Multi Function Devices,D22GB000040125,
http://statistics.data.gov.uk/id/local-authority/29UP,Tonbridge & Malling Borough Council,11/17/2021,0012008184/2,12008184, 122.61,KCS,00054200,,Leasing Charges,Multi Function Devices,D22GB000044038,
http://statistics.data.gov.uk/id/local-authority/29UP,Tonbridge & Malling Borough Council,11/17/2021,0012008185/1,12008185, 14.22,KCS,00054200,,Copy Charges,Multi Function Devices,D22GB000040125,
http://statistics.data.gov.uk/id/local-authority/29UP,Tonbridge & Malling Borough Council,11/17/2021,0012008185/2,12008185, 122.61,KCS,00054200,,Leasing Charges,Multi Function Devices,D22GB000044038,
http://statistics.data.gov.uk/id/local-authority/29UP,Tonbridge & Malling Borough Council,11/17/2021,0012008186/1,12008186, 89.43,KCS,00054200,,Copy Charges,Multi Function Devices,D22GB000040125,
http://statistics.data.gov.uk/id/local-authority/29UP,Tonbridge & Malling Borough Council,11/17/2021,0012008186/2,12008186, 130.63,KCS,00054200,,Leasing Charges,Multi Function Devices,D22GB000044038,
http://statistics.data.gov.uk/id/local-authority/29UP,Tonbridge & Malling Borough Council,11/17/2021,0012008187/1,12008187, 5.91,KCS,00054200,,Copy Charges,Multi Function Devices,D22GB000040125,
http://statistics.data.gov.uk/id/local-authority/29UP,Tonbridge & Malling Borough Council,11/17/2021,0012008187/2,12008187, 82.58,KCS,00054200,,Leasing Charges,Multi Function Devices,D22GB000044038,
http://statistics.data.gov.uk/id/local-authority/29UP,Tonbridge & Malling Borough Council,11/17/2021,0012008188/1,12008188, 1.60,KCS,00054200,,Copy Charges,Multi Function Devices,D22GB000040125,
http://statistics.data.gov.uk/id/local-authority/29UP,Tonbridge & Malling Borough Council,11/17/2021,0012008188/2,12008188, 91.95,KCS,00054200,,Leasing Charges,Multi Function Devices,D22GB000044038,
http://statistics.data.gov.uk/id/local-authority/29UP,Tonbridge & Malling Borough Council,11/17/2021,0012008189/1,12008189, 39.93,KCS,00054200,,Copy Charges,Multi Function Devices,D22GB000040125,
http://statistics.data.gov.uk/id/local-authority/29UP,Tonbridge & Malling Borough Council,11/17/2021,0012008189/2,12008189, 122.61,KCS,00054200,,Leasing Charges,Multi Function Devices,D22GB000044038,
http://statistics.data.gov.uk/id/local-authority/29UP,Tonbridge & Malling Borough Council,11/17/2021,0012008190/10,12008190, 3.00,O2 UK Ltd,01268000,,Mobile Telephones,Chief Exec Sals&Overheads,D01ACDC0245013,
http://statistics.data.gov.uk/id/local-authority/29UP,Tonbridge & Malling Borough Council,11/17/2021,0012008190/11,12008190, 3.00,O2 UK Ltd,01268000,,Mobile Telephones,Technical Sals&Overheads,D01AEDE0045013,
http://statistics.data.gov.uk/id/local-authority/29UP,Tonbridge & Malling Borough Council,11/17/2021,0012008190/12,12008190, 6.00,O2 UK Ltd,01268000,,Mobile Telephones,Technical Sals&Overheads,D01AEDE0145013,
http://statistics.data.gov.uk/id/local-authority/29UP,Tonbridge & Malling Borough Council,11/17/2021,0012008190/13,12008190, 9.00,O2 UK Ltd,01268000,,Mobile Telephones,Technical Sals&Overheads,D01AEDE0245013,
http://statistics.data.gov.uk/id/local-authority/29UP,Tonbridge & Malling Borough Council,11/17/2021,0012008190/14,12008190, 39.13,O2 UK Ltd,01268000,,Mobile Telephones,Technical Sals&Overheads,D01AEDE0445013,
http://statistics.data.gov.uk/id/local-authority/29UP,Tonbridge & Malling Borough Council,11/17/2021,0012008190/15,12008190, 3.00,O2 UK Ltd,01268000,,Mobile Telephones,Technical Sals&Overheads,D01AEDE0545013,
http://statistics.data.gov.uk/id/local-authority/29UP,Tonbridge & Malling Borough Council,11/17/2021,0012008190/16,12008190, 12.00,O2 UK Ltd,01268000,,Mobile Telephones,Finance Sals&Overheads,D01AFDF0045013,
http://statistics.data.gov.uk/id/local-authority/29UP,Tonbridge & Malling Borough Council,11/17/2021,0012008190/17,12008190, 6.00,O2 UK Ltd,01268000,,Mobile Telephones,Finance Sals&Overheads,D01AFDF0945013,
http://statistics.data.gov.uk/id/local-authority/29UP,Tonbridge & Malling Borough Council,11/17/2021,0012008190/18,12008190, 12.00,O2 UK Ltd,01268000,,Mobile Telephones,St Scene & Leis Sals&Overheads,D01AGDG0045013,
http://statistics.data.gov.uk/id/local-authority/29UP,Tonbridge & Malling Borough Council,11/17/2021,0012008190/19,12008190, 6.00,O2 UK Ltd,01268000,,Mobile Telephones,St Scene & Leis Sals&Overheads,D01AGDG0145013,
http://statistics.data.gov.uk/id/local-authority/29UP,Tonbridge & Malling Borough Council,11/17/2021,0012008190/20,12008190, 9.00,O2 UK Ltd,01268000,,Mobile Telephones,St Scene & Leis Sals&Overheads,D01AGDG0445013,
http://statistics.data.gov.uk/id/local-authority/29UP,Tonbridge & Malling Borough Council,11/17/2021,0012008190/21,12008190, 30.40,O2 UK Ltd,01268000,,Mobile Telephones,St Scene & Leis Sals&Overheads,D01AGDG2045013,
http://statistics.data.gov.uk/id/local-authority/29UP,Tonbridge & Malling Borough Council,11/17/2021,0012008190/22,12008190, 9.00,O2 UK Ltd,01268000,,Mobile Telephones,Planning Sals&Overheads,D01AJDJ0045013,
http://statistics.data.gov.uk/id/local-authority/29UP,Tonbridge & Malling Borough Council,11/17/2021,0012008190/23,12008190, 12.00,O2 UK Ltd,01268000,,Mobile Telephones,Planning Sals&Overheads,D01AJDJ0245013,
http://statistics.data.gov.uk/id/local-authority/29UP,Tonbridge & Malling Borough Council,11/17/2021,0012008190/24,12008190, 6.00,O2 UK Ltd,01268000,,Mobile Telephones,Legal Sals&Overheads,D01ARDR0045013,
http://statistics.data.gov.uk/id/local-authority/29UP,Tonbridge & Malling Borough Council,11/17/2021,0012008190/25,12008190, 12.00,O2 UK Ltd,01268000,,Mobile Telephones,Legal Sals&Overheads,D01ARDR0445013,
http://statistics.data.gov.uk/id/local-authority/29UP,Tonbridge & Malling Borough Council,11/17/2021,0012008190/26,12008190, 3.00,O2 UK Ltd,01268000,,Mobile Telephones,Legal Sals&Overheads,D01ARDR0745013,
http://statistics.data.gov.uk/id/local-authority/29UP,Tonbridge & Malling Borough Council,11/17/2021,0012008190/27,12008190, 3.00,O2 UK Ltd,01268000,,Mobile Telephones,Env Hlth & Hsg Sals&Overheads,D01AVDV0045013,
http://statistics.data.gov.uk/id/local-authority/29UP,Tonbridge & Malling Borough Council,11/17/2021,0012008190/28,12008190, 9.00,O2 UK Ltd,01268000,,Mobile Telephones,Env Hlth & Hsg Sals&Overheads,D01AVDV0145013,
http://statistics.data.gov.uk/id/local-authority/29UP,Tonbridge & Malling Borough Council,11/17/2021,0012008190/29,12008190, 6.00,O2 UK Ltd,01268000,,Mobile Telephones,Env Hlth & Hsg Sals&Overheads,D01AVDV0345013,
http://statistics.data.gov.uk/id/local-authority/29UP,Tonbridge & Malling Borough Council,11/17/2021,0012008190/3,12008190, 3.00,O2 UK Ltd,01268000,,Telephones - General,Open Spaces & Amenity Areas,B22LE000045010,
http://statistics.data.gov.uk/id/local-authority/29UP,Tonbridge & Malling Borough Council,11/17/2021,0012008190/30,12008190, 5.27,O2 UK Ltd,01268000,,Mobile Telephones,Env Hlth & Hsg Sals&Overheads,D01AVDV0745013,
http://statistics.data.gov.uk/id/local-authority/29UP,Tonbridge & Malling Borough Council,11/17/2021,0012008190/31,12008190, 9.00,O2 UK Ltd,01268000,,Mobile Telephones,Customer Services,D23CS000045013,
http://statistics.data.gov.uk/id/local-authority/29UP,Tonbridge & Malling Borough Council,11/17/2021,0012008190/32,12008190, 3.00,O2 UK Ltd,01268000,,Mobile Telephones,Tonbridge Gateway,D23TG000045013,
http://statistics.data.gov.uk/id/local-authority/29UP,Tonbridge & Malling Borough Council,11/17/2021,0012008190/33,12008190, 627.00,O2 UK Ltd,01268000,,Leased Lines & Modems,Information Technology,D27KD000045011,
http://statistics.data.gov.uk/id/local-authority/29UP,Tonbridge & Malling Borough Council,11/17/2021,0012008190/34,12008190, 3.00,O2 UK Ltd,01268000,,Mobile Telephones,Mayoral & Other Member Support,D29LX000045013,
http://statistics.data.gov.uk/id/local-authority/29UP,Tonbridge & Malling Borough Council,11/17/2021,0012008190/35,12008190, 3.00,O2 UK Ltd,01268000,,Emergency Out of Hours Recharg,Refuse Collection,H20SA000045030,
http://statistics.data.gov.uk/id/local-authority/29UP,Tonbridge & Malling Borough Council,11/17/2021,0012008190/36,12008190, 3.00,O2 UK Ltd,01268000,,Emergency Out of Hours Recharg,Street Scene,H23SD000045030,
http://statistics.data.gov.uk/id/local-authority/29UP,Tonbridge & Malling Borough Council,11/17/2021,0012008190/4,12008190, 6.00,O2 UK Ltd,01268000,,Telephones - General,Leybourne Lakes Country Park,B22LK000045010,
http://statistics.data.gov.uk/id/local-authority/29UP,Tonbridge & Malling Borough Council,11/17/2021,0012008190/5,12008190, 6.00,O2 UK Ltd,01268000,,Mobile Telephones,Admin & Prop Sals&Overheads,D01AADA0045013,
http://statistics.data.gov.uk/id/local-authority/29UP,Tonbridge & Malling Borough Council,11/17/2021,0012008190/6,12008190, 3.00,O2 UK Ltd,01268000,,Mobile Telephones,Admin & Prop Sals&Overheads,D01AADA1045013,
http://statistics.data.gov.uk/id/local-authority/29UP,Tonbridge & Malling Borough Council,11/17/2021,0012008190/7,12008190, 9.00,O2 UK Ltd,01268000,,Mobile Telephones,Admin & Prop Sals&Overheads,D01AADA1245013,
http://statistics.data.gov.uk/id/local-authority/29UP,Tonbridge & Malling Borough Council,11/17/2021,0012008190/8,12008190, 3.00,O2 UK Ltd,01268000,,Mobile Telephones,Chief Exec Sals&Overheads,D01ACDC0045013,
http://statistics.data.gov.uk/id/local-authority/29UP,Tonbridge & Malling Borough Council,11/17/2021,0012008190/9,12008190, 3.00,O2 UK Ltd,01268000,,Mobile Telephones,Chief Exec Sals&Overheads,D01ACDC0145013,
http://statistics.data.gov.uk/id/local-authority/29UP,Tonbridge & Malling Borough Council,11/17/2021,0012008191/1,12008191, 66.10,CCS Media Ltd,00018000,,Purchases,Information Technology,D27KD000040101,410032079
http://statistics.data.gov.uk/id/local-authority/29UP,Tonbridge & Malling Borough Council,11/17/2021,0012008191/2,12008191, 2.00,CCS Media Ltd,00018000,,Delivery Expenses,Information Technology,D27KD000044069,410032079
http://statistics.data.gov.uk/id/local-authority/29UP,Tonbridge & Malling Borough Council,11/17/2021,0012008192/1,12008192, 286.92,NEC Software Solutions UK Ltd,01073900,202159745,Software Hire & Support,Information Technology,D27KD000044059,410032052
http://statistics.data.gov.uk/id/local-authority/29UP,Tonbridge & Malling Borough Council,11/17/2021,0012008192/2,12008192, 626.00,NEC Software Solutions UK Ltd,01073900,202159745,Software Hire & Support,Information Technology,D27KD000044059,410032052
http://statistics.data.gov.uk/id/local-authority/29UP,Tonbridge & Malling Borough Council,11/17/2021,0021037578/1,21037578, 843.00,Security & Electronic Solutions Ltd,01379500,,Initial Furniture & Equipment,Capital Renewals Leisure,P05KGBC0209906,210056482
http://statistics.data.gov.uk/id/local-authority/29UP,Tonbridge & Malling Borough Council,11/17/2021,0022025952/1,22025952, 4086.00,Craemer UK LTD,01616400,,Other Expenses,Green Waste Bin Growth/Replace,P02BC000009908,220003149
http://statistics.data.gov.uk/id/local-authority/29UP,Tonbridge & Malling Borough Council,11/17/2021,0022025953/3,22025953, 2016.80,Lucy and Martin Recycling LTD,01694200,,Vehicle Licences,Dry Recycling,H34SR000030105,
http://statistics.data.gov.uk/id/local-authority/29UP,Tonbridge & Malling Borough Council,11/17/2021,0022025954/3,22025954, 1403.39,Vivid Resourcing,01773700,,Temporary Staff,Env Hlth & Hsg Sals&Overheads,D01AVDV0711300,
http://statistics.data.gov.uk/id/local-authority/29UP,Tonbridge & Malling Borough Council,11/17/2021,0022025955/3,22025955, 521.93,Vivid Resourcing,01773700,,Temporary Staff,Env Hlth & Hsg Sals&Overheads,D01AVDV0711300,
http://statistics.data.gov.uk/id/local-authority/29UP,Tonbridge & Malling Borough Council,11/17/2021,0022025956/1,22025956, 59.50,The young lives foundation,01527700,,Homelessness Reduction Initiat,Homelessness,C01AA000048019,
http://statistics.data.gov.uk/id/local-authority/29UP,Tonbridge & Malling Borough Council,11/17/2021,0022025957/3,22025957, 763.31,G2 Recruitment Solutions,01786000,,Temporary Staff,Env Hlth & Hsg Sals&Overheads,D01AVDV0711300,
http://statistics.data.gov.uk/id/local-authority/29UP,Tonbridge & Malling Borough Council,11/17/2021,0022025958/1,22025958, 39.20,Loxton Installations Ltd,01278800,,Repairs & Mtce to Buildings,Homelessness,C01AA000020101,
http://statistics.data.gov.uk/id/local-authority/29UP,Tonbridge & Malling Borough Council,11/17/2021,0022025959/1,22025959, 3694.50,1st  Steps Housing Kent,01716100,,Temporary Accommodation,Homelessness,C01AA000044051,
http://statistics.data.gov.uk/id/local-authority/29UP,Tonbridge & Malling Borough Council,11/17/2021,0022025960/1,22025960, 5404.00,Ascendit Lifts Ltd,00446600,,Other Expenses,Disabled Facilities Grant Mand,P03AC000009908,
http://statistics.data.gov.uk/id/local-authority/29UP,Tonbridge & Malling Borough Council,11/17/2021,0022025961/1,22025961, 3090.00,Hubbard & Houghton Construction Ltd,00970600,,Other Expenses,Disabled Facilities Grant Mand,P03AC000009908,
http://statistics.data.gov.uk/id/local-authority/29UP,Tonbridge & Malling Borough Council,11/17/2021,0022025962/1,22025962, 3500.81,Clarion Housing,01776300,,Temporary Accommodation,Homelessness,C01AA000044051,
http://statistics.data.gov.uk/id/local-authority/29UP,Tonbridge & Malling Borough Council,11/17/2021,0022025963/1,22025963, 4650.00,Connells Residential Lettings,01668100,,Temporary Accommodation,Homelessness,C01AASYRI44051,
http://statistics.data.gov.uk/id/local-authority/29UP,Tonbridge & Malling Borough Council,11/17/2021,0022025964/1,22025964, 7062.00,Kent Accommodation Ltd,01722000,,Temporary Accommodation,Homelessness,C01AA000044051,
http://statistics.data.gov.uk/id/local-authority/29UP,Tonbridge & Malling Borough Council,11/17/2021,0022025965/3,22025965, 9362.55,Tunbridge Wells Borough Council,00844600,,Other Expenses,Refuse Collection,H20SA000048010,
http://statistics.data.gov.uk/id/local-authority/29UP,Tonbridge & Malling Borough Council,11/17/2021,0022025967/1,22025967, 13524.00,Less Homeless Ltd,01489300,,Temporary Accommodation,Homelessness,C01AA000044051,
http://statistics.data.gov.uk/id/local-authority/29UP,Tonbridge & Malling Borough Council,11/17/2021,0022025968/1,22025968, 950.00,Stiles Harold Williams LLP,01721700,,Temporary Accommodation,Homelessness,C01AASYRI44051,
http://statistics.data.gov.uk/id/local-authority/29UP,Tonbridge & Malling Borough Council,11/17/2021,0022025969/3,22025969, 321.00,O2 UK Ltd,01268000,,Mobile Telephones,St Scene & Leis Sals&Overheads,D01AGDG2045013,
http://statistics.data.gov.uk/id/local-authority/29UP,Tonbridge & Malling Borough Council,11/17/2021,0022025970/1,22025970, 528.24,Stiles Harold Williams LLP,01721700,,Temporary Accommodation,Homelessness,C01AASYRI44051,
http://statistics.data.gov.uk/id/local-authority/29UP,Tonbridge & Malling Borough Council,11/17/2021,0022025973/3,22025973, 54.22,Premier Inn,01217400,,Temporary Accommodation,Homelessness,C01AA000044051,
http://statistics.data.gov.uk/id/local-authority/29UP,Tonbridge & Malling Borough Council,11/17/2021,0022025974/1,22025974, 35729.00,Look Ahead,01746900,,Purchases,Homelessness,C01AA000040101,220003165
http://statistics.data.gov.uk/id/local-authority/29UP,Tonbridge & Malling Borough Council,11/17/2021,0022025975/1,22025975, 6076.00,Premier Property Providers,01785400,,Temporary Accommodation,Homelessness,C01AA000044051,
http://statistics.data.gov.uk/id/local-authority/29UP,Tonbridge & Malling Borough Council,11/17/2021,0022025976/3,22025976, 95.00,SPA CAFFE LIMITED,00127100,,Temporary Accommodation,Homelessness,C01AA000044051,
http://statistics.data.gov.uk/id/local-authority/29UP,Tonbridge & Malling Borough Council,11/17/2021,0022025977/3,22025977, 9774.00,Simon Niblett Lettings,00072600,,Temporary Accommodation,Homelessness,C01AA000044051,
http://statistics.data.gov.uk/id/local-authority/29UP,Tonbridge & Malling Borough Council,11/17/2021,0022025978/3,22025978, 10044.00,Simon Niblett Lettings,00072600,,Temporary Accommodation,Homelessness,C01AA000044051,
http://statistics.data.gov.uk/id/local-authority/29UP,Tonbridge & Malling Borough Council,11/17/2021,0022025979/3,22025979, 3025.00,Simon Niblett Lettings,00072600,,Temporary Accommodation,Homelessness,C01AA000044051,
http://statistics.data.gov.uk/id/local-authority/29UP,Tonbridge & Malling Borough Council,11/17/2021,0022025980/3,22025980, 3410.00,Simon Niblett Lettings,00072600,,Temporary Accommodation,Homelessness,C01AA000044051,
http://statistics.data.gov.uk/id/local-authority/29UP,Tonbridge & Malling Borough Council,11/17/2021,0022025981/1,22025981, 616.00,Smart Property Professionals,01815100,,Temporary Accommodation,Homelessness,C01AA000044051,
http://statistics.data.gov.uk/id/local-authority/29UP,Tonbridge & Malling Borough Council,11/17/2021,0022025982/1,22025982, 1320.00,Smart Property Professionals,01815100,,Temporary Accommodation,Homelessness,C01AA000044051,
http://statistics.data.gov.uk/id/local-authority/29UP,Tonbridge & Malling Borough Council,11/17/2021,0022025985/1,22025985, 600.22,Scottish Water Business Stream Ltd,01641100,,Sewerage Charges,Public Conveniences,H22SCH00424003,
http://statistics.data.gov.uk/id/local-authority/29UP,Tonbridge & Malling Borough Council,11/17/2021,0022025987/1,22025987, 354.43,Urbaser LTD,01718800,,Maintenance of Grounds,Sports Grounds,B13ET000020402,
http://statistics.data.gov.uk/id/local-authority/29UP,Tonbridge & Malling Borough Council,11/17/2021,0022025987/10,22025987, 55.10,Urbaser LTD,01718800,,Maintenance of Grounds,Grounds,D21FF000020402,
http://statistics.data.gov.uk/id/local-authority/29UP,Tonbridge & Malling Borough Council,11/17/2021,0022025987/11,22025987, 168.53,Urbaser LTD,01718800,,Maintenance of Grounds,Parking Off-Street,E10HA000020402,
http://statistics.data.gov.uk/id/local-authority/29UP,Tonbridge & Malling Borough Council,11/17/2021,0022025987/12,22025987, 4288.11,Urbaser LTD,01718800,,Maintenance of Grounds,Parking Off-Street,E10HAE00120402,
http://statistics.data.gov.uk/id/local-authority/29UP,Tonbridge & Malling Borough Council,11/17/2021,0022025987/13,22025987, 461.92,Urbaser LTD,01718800,,Maintenance of Grounds,Parking Off-Street,E10HAE00220402,
http://statistics.data.gov.uk/id/local-authority/29UP,Tonbridge & Malling Borough Council,11/17/2021,0022025987/14,22025987, 288.97,Urbaser LTD,01718800,,Maintenance of Grounds,Parking Off-Street,E10HAE00320402,
http://statistics.data.gov.uk/id/local-authority/29UP,Tonbridge & Malling Borough Council,11/17/2021,0022025987/15,22025987, 1511.29,Urbaser LTD,01718800,,Maintenance of Grounds,Parking Off-Street,E10HAE00420402,
http://statistics.data.gov.uk/id/local-authority/29UP,Tonbridge & Malling Borough Council,11/17/2021,0022025987/16,22025987, 251.14,Urbaser LTD,01718800,,Maintenance of Grounds,Parking Off-Street,E10HAE00520402,
http://statistics.data.gov.uk/id/local-authority/29UP,Tonbridge & Malling Borough Council,11/17/2021,0022025987/17,22025987, 936.67,Urbaser LTD,01718800,,Maintenance of Grounds,Parking Off-Street,E10HAE00620402,
http://statistics.data.gov.uk/id/local-authority/29UP,Tonbridge & Malling Borough Council,11/17/2021,0022025987/18,22025987, 7.90,Urbaser LTD,01718800,,Maintenance of Grounds,Parking Off-Street,E10HAE00820402,
http://statistics.data.gov.uk/id/local-authority/29UP,Tonbridge & Malling Borough Council,11/17/2021,0022025987/19,22025987, 7.80,Urbaser LTD,01718800,,Maintenance of Grounds,Parking Off-Street,E10HAE00920402,
http://statistics.data.gov.uk/id/local-authority/29UP,Tonbridge & Malling Borough Council,11/17/2021,0022025987/2,22025987, 75.43,Urbaser LTD,01718800,,Maintenance of Grounds,Poult Wood Golf Centre,B21KE000020402,
http://statistics.data.gov.uk/id/local-authority/29UP,Tonbridge & Malling Borough Council,11/17/2021,0022025987/20,22025987, 18.51,Urbaser LTD,01718800,,Maintenance of Grounds,Parking Off-Street,E10HAE01020402,
http://statistics.data.gov.uk/id/local-authority/29UP,Tonbridge & Malling Borough Council,11/17/2021,0022025987/21,22025987, 87.95,Urbaser LTD,01718800,,Maintenance of Grounds,Parking Off-Street,E10HAE01120402,
http://statistics.data.gov.uk/id/local-authority/29UP,Tonbridge & Malling Borough Council,11/17/2021,0022025987/22,22025987, 55.34,Urbaser LTD,01718800,,Maintenance of Grounds,Parking Off-Street,E10HAE01220402,
http://statistics.data.gov.uk/id/local-authority/29UP,Tonbridge & Malling Borough Council,11/17/2021,0022025987/23,22025987, 1049.30,Urbaser LTD,01718800,,Maintenance of Grounds,Parking Off-Street,E10HAE01320402,
http://statistics.data.gov.uk/id/local-authority/29UP,Tonbridge & Malling Borough Council,11/17/2021,0022025987/24,22025987, 79.80,Urbaser LTD,01718800,,Maintenance of Grounds,Parking Off-Street,E10HAE01420402,
http://statistics.data.gov.uk/id/local-authority/29UP,Tonbridge & Malling Borough Council,11/17/2021,0022025987/25,22025987, 245.93,Urbaser LTD,01718800,,Maintenance of Grounds,Parking Off-Street,E10HAE01520402,
http://statistics.data.gov.uk/id/local-authority/29UP,Tonbridge & Malling Borough Council,11/17/2021,0022025987/26,22025987, 264.50,Urbaser LTD,01718800,,Maintenance of Grounds,Parking Off-Street,E10HAE01620402,
http://statistics.data.gov.uk/id/local-authority/29UP,Tonbridge & Malling Borough Council,11/17/2021,0022025987/27,22025987, 780.85,Urbaser LTD,01718800,,Maintenance of Grounds,Parking Off-Street,E10HAE01720402,
http://statistics.data.gov.uk/id/local-authority/29UP,Tonbridge & Malling Borough Council,11/17/2021,0022025987/28,22025987, 224.12,Urbaser LTD,01718800,,Maintenance of Grounds,Parking Off-Street,E10HAE01920402,
http://statistics.data.gov.uk/id/local-authority/29UP,Tonbridge & Malling Borough Council,11/17/2021,0022025987/29,22025987, 492.32,Urbaser LTD,01718800,,Maintenance of Grounds,Parking Off-Street,E10HAE02020402,
http://statistics.data.gov.uk/id/local-authority/29UP,Tonbridge & Malling Borough Council,11/17/2021,0022025987/3,22025987, 31.13,Urbaser LTD,01718800,,Maintenance of Grounds,Haysden Country Park,B22LC000020402,
http://statistics.data.gov.uk/id/local-authority/29UP,Tonbridge & Malling Borough Council,11/17/2021,0022025987/30,22025987, 17.09,Urbaser LTD,01718800,,Maintenance of Grounds,Parking Off-Street,E10HAE02120402,
http://statistics.data.gov.uk/id/local-authority/29UP,Tonbridge & Malling Borough Council,11/17/2021,0022025987/31,22025987, 112.54,Urbaser LTD,01718800,,Maintenance of Grounds,Parking Off-Street,E10HAE02220402,
http://statistics.data.gov.uk/id/local-authority/29UP,Tonbridge & Malling Borough Council,11/17/2021,0022025987/32,22025987, 946.10,Urbaser LTD,01718800,,Maintenance of Grounds,Parking Off-Street,E10HAE02320402,
http://statistics.data.gov.uk/id/local-authority/29UP,Tonbridge & Malling Borough Council,11/17/2021,0022025987/33,22025987, 2.44,Urbaser LTD,01718800,,Maintenance of Grounds,Parking Off-Street,E10HAE02720402,
http://statistics.data.gov.uk/id/local-authority/29UP,Tonbridge & Malling Borough Council,11/17/2021,0022025987/34,22025987, 343.77,Urbaser LTD,01718800,,Maintenance of Grounds,Parking Off-Street,E10HAE02820402,
http://statistics.data.gov.uk/id/local-authority/29UP,Tonbridge & Malling Borough Council,11/17/2021,0022025987/35,22025987, 6.19,Urbaser LTD,01718800,,Maintenance of Grounds,Parking Off-Street,E10HAE02920402,
http://statistics.data.gov.uk/id/local-authority/29UP,Tonbridge & Malling Borough Council,11/17/2021,0022025987/36,22025987, 36.43,Urbaser LTD,01718800,,Maintenance of Grounds,Parking Off-Street,E10HAE03020402,
http://statistics.data.gov.uk/id/local-authority/29UP,Tonbridge & Malling Borough Council,11/17/2021,0022025987/37,22025987, 31.00,Urbaser LTD,01718800,,Maintenance of Grounds,Parking Off-Street,E10HAE03120402,
http://statistics.data.gov.uk/id/local-authority/29UP,Tonbridge & Malling Borough Council,11/17/2021,0022025987/38,22025987, 657.32,Urbaser LTD,01718800,,Maintenance of Grounds,Parking Off-Street,E10HAE04020402,
http://statistics.data.gov.uk/id/local-authority/29UP,Tonbridge & Malling Borough Council,11/17/2021,0022025987/39,22025987, 455.90,Urbaser LTD,01718800,,Maintenance of Grounds,Parking Off-Street,E10HAE04220402,
http://statistics.data.gov.uk/id/local-authority/29UP,Tonbridge & Malling Borough Council,11/17/2021,0022025987/4,22025987, 23.91,Urbaser LTD,01718800,,Dog Bin Emptying,Haysden Country Park,B22LC000044012,
http://statistics.data.gov.uk/id/local-authority/29UP,Tonbridge & Malling Borough Council,11/17/2021,0022025987/40,22025987, 1308.55,Urbaser LTD,01718800,,Maintenance of Grounds,Parking Off-Street,E10HAE04520402,
http://statistics.data.gov.uk/id/local-authority/29UP,Tonbridge & Malling Borough Council,11/17/2021,0022025987/41,22025987, 81773.77,Urbaser LTD,01718800,,Contract Payments,Refuse Collection,H20SA000054001,
http://statistics.data.gov.uk/id/local-authority/29UP,Tonbridge & Malling Borough Council,11/17/2021,0022025987/42,22025987, 865.70,Urbaser LTD,01718800,,Responsible Dog Ownership,Street Scene,H23SD000044050,
http://statistics.data.gov.uk/id/local-authority/29UP,Tonbridge & Malling Borough Council,11/17/2021,0022025987/43,22025987, 51717.72,Urbaser LTD,01718800,,Contract Payments,Street Scene,H23SD000054001,
http://statistics.data.gov.uk/id/local-authority/29UP,Tonbridge & Malling Borough Council,11/17/2021,0022025987/44,22025987, 819.23,Urbaser LTD,01718800,,General Maintenance,Dry Recycling,H34SR000020301,
http://statistics.data.gov.uk/id/local-authority/29UP,Tonbridge & Malling Borough Council,11/17/2021,0022025987/45,22025987, 73613.88,Urbaser LTD,01718800,,Contract Payments,Dry Recycling,H34SR000054001,
http://statistics.data.gov.uk/id/local-authority/29UP,Tonbridge & Malling Borough Council,11/17/2021,0022025987/46,22025987, 3803.64,Urbaser LTD,01718800,,Bring Sites Mixed Recycling,Dry Recycling,H34SR000054026,
http://statistics.data.gov.uk/id/local-authority/29UP,Tonbridge & Malling Borough Council,11/17/2021,0022025987/47,22025987, 28804.34,Urbaser LTD,01718800,,Contract Payments,Food Recycling,H34SS000054001,
http://statistics.data.gov.uk/id/local-authority/29UP,Tonbridge & Malling Borough Council,11/17/2021,0022025987/48,22025987, 16367.16,Urbaser LTD,01718800,,Contract Payments,Garden Waste Recycling,H34ST000054001,
http://statistics.data.gov.uk/id/local-authority/29UP,Tonbridge & Malling Borough Council,11/17/2021,0022025987/5,22025987, 677.66,Urbaser LTD,01718800,,Maintenance of Grounds,Open Spaces & Amenity Areas,B22LE000020402,
http://statistics.data.gov.uk/id/local-authority/29UP,Tonbridge & Malling Borough Council,11/17/2021,0022025987/6,22025987, 12.75,Urbaser LTD,01718800,,Dog Bin Emptying,Open Spaces & Amenity Areas,B22LE000044012,
http://statistics.data.gov.uk/id/local-authority/29UP,Tonbridge & Malling Borough Council,11/17/2021,0022025987/7,22025987, 22.00,Urbaser LTD,01718800,,Maintenance of Grounds,Countryside/Woodland Mgt,B22LG000020402,
http://statistics.data.gov.uk/id/local-authority/29UP,Tonbridge & Malling Borough Council,11/17/2021,0022025987/8,22025987, 66.06,Urbaser LTD,01718800,,Maintenance of Grounds,Leybourne Lakes Country Park,B22LK000020402,
http://statistics.data.gov.uk/id/local-authority/29UP,Tonbridge & Malling Borough Council,11/17/2021,0022025987/9,22025987, 23.91,Urbaser LTD,01718800,,Dog Bin Emptying,Leybourne Lakes Country Park,B22LK000044012,
http://statistics.data.gov.uk/id/local-authority/29UP,Tonbridge & Malling Borough Council,11/17/2021,0022025988/1,22025988, 759.00,Countrystyle Group,00835900,781981681,Plastic Recycling,Dry Recycling,H34SR000054019,
http://statistics.data.gov.uk/id/local-authority/29UP,Tonbridge & Malling Borough Council,11/17/2021,0022025989/1,22025989, 12300.00,MGB Plastics Ltd,00709600,,Initial Furniture & Equipment,Refuse Bins Growth/Replacement,P02DA000009906,220003164
http://statistics.data.gov.uk/id/local-authority/29UP,Tonbridge & Malling Borough Council,11/17/2021,0022025990/1,22025990, 21414.00,SPA CAFFE LIMITED,00127100,,Temporary Accommodation,Homelessness,C01AA000044051,
http://statistics.data.gov.uk/id/local-authority/29UP,Tonbridge & Malling Borough Council,11/17/2021,0031018288/3,31018288, 763.31,G2 Recruitment Solutions,01786000,,Temporary Staff,Env Hlth & Hsg Sals&Overheads,D01AVDV0711300,
http://statistics.data.gov.uk/id/local-authority/29UP,Tonbridge & Malling Borough Council,11/17/2021,0031018290/1,31018290, 6911.76,PSR Lighting & Signs Ltd,01265400,,Tonbridge Christmas Lighting,Eco Dev & Reg Ton Chris Light,D52TF000047015,210056522
http://statistics.data.gov.uk/id/local-authority/29UP,Tonbridge & Malling Borough Council,11/17/2021,0031018292/1,31018292, 1895.00,Arnold Tarmac Ltd,01685100,,Contract Payments,Car Park Imp Rolling Programme,P01AB000009904,310042747
http://statistics.data.gov.uk/id/local-authority/29UP,Tonbridge & Malling Borough Council,11/17/2021,0032009312/1,32009312, 877.50,Charles & Associates,01739200,,Application & Appeals,Development Management,A01AB000044194,320003335
http://statistics.data.gov.uk/id/local-authority/29UP,Tonbridge & Malling Borough Council,11/17/2021,0032009313/3,32009313, 1493.20,The Oyster Partnership,01196400,,Temporary Staff,Planning Sals&Overheads,D01AJDJ0111300,
http://statistics.data.gov.uk/id/local-authority/29UP,Tonbridge & Malling Borough Council,11/17/2021,0032009314/1,32009314, 301.89,KM Media Group Ltd,00053900,,Advertising General,Development Management,A01ABZ99944216,320003352
http://statistics.data.gov.uk/id/local-authority/29UP,Tonbridge & Malling Borough Council,11/17/2021,0032009315/1,32009315, 13947.18,JBA Consulting,01599000,665300941,Local Dev Framework Expenses,Preparation of Local Dev Frame,A01AE000044023,320003336
http://statistics.data.gov.uk/id/local-authority/29UP,Tonbridge & Malling Borough Council,11/17/2021,0041033646/1,41033646, 80.00,WorldPay Ltd,01402000,991280207,Credit Card Commission,Banking Arrangements,D43QK000044082,
http://statistics.data.gov.uk/id/local-authority/29UP,Tonbridge & Malling Borough Council,11/17/2021,0041033646/2,41033646, 54.88,WorldPay Ltd,01402000,991280207,Credit Card Commission,Banking Arrangements,D43QK000044082,
http://statistics.data.gov.uk/id/local-authority/29UP,Tonbridge & Malling Borough Council,11/17/2021,0041033646/3,41033646, 1.68,WorldPay Ltd,01402000,991280207,Credit Card Commission,Banking Arrangements,D43QK000044082,
http://statistics.data.gov.uk/id/local-authority/29UP,Tonbridge & Malling Borough Council,11/17/2021,0041033647/1,41033647, 80.00,WorldPay Ltd,01402000,991280207,Credit Card Commission,Banking Arrangements,D43QK000044082,
http://statistics.data.gov.uk/id/local-authority/29UP,Tonbridge & Malling Borough Council,11/17/2021,0041033647/2,41033647, 47.60,WorldPay Ltd,01402000,991280207,Credit Card Commission,Banking Arrangements,D43QK000044082,
http://statistics.data.gov.uk/id/local-authority/29UP,Tonbridge & Malling Borough Council,11/17/2021,0041033647/3,41033647, 1.44,WorldPay Ltd,01402000,991280207,Credit Card Commission,Banking Arrangements,D43QK000044082,
http://statistics.data.gov.uk/id/local-authority/29UP,Tonbridge & Malling Borough Council,11/17/2021,0041033648/1,41033648, 80.00,WorldPay Ltd,01402000,991280207,Credit Card Commission,Banking Arrangements,D43QK000044082,
http://statistics.data.gov.uk/id/local-authority/29UP,Tonbridge & Malling Borough Council,11/17/2021,0041033648/2,41033648, 160.88,WorldPay Ltd,01402000,991280207,Credit Card Commission,Banking Arrangements,D43QK000044082,
http://statistics.data.gov.uk/id/local-authority/29UP,Tonbridge & Malling Borough Council,11/17/2021,0041033648/3,41033648, 0.48,WorldPay Ltd,01402000,991280207,Credit Card Commission,Banking Arrangements,D43QK000044082,
http://statistics.data.gov.uk/id/local-authority/29UP,Tonbridge & Malling Borough Council,11/17/2021,0041033658/1,41033658, 610.50,KH Recruitment Ltd,01738900,,Temporary Staff,Finance Sals&Overheads,D01AFDF1111300,
http://statistics.data.gov.uk/id/local-authority/29UP,Tonbridge & Malling Borough Council,11/17/2021,0041033668/1,41033668, 987.13,Morgan Hunt UK Ltd,01086900,,Temporary Staff,Finance Sals&Overheads,D01AFDF1111300,
http://statistics.data.gov.uk/id/local-authority/29UP,Tonbridge & Malling Borough Council,11/17/2021,0041033669/1,41033669, 900.00,Morgan Hunt UK Ltd,01086900,,Temporary Staff,Finance Sals&Overheads,D01AFDF1111300,
http://statistics.data.gov.uk/id/local-authority/29UP,Tonbridge & Malling Borough Council,11/17/2021,0041033670/1,41033670, 27901.42,Cushman & Wakefield,01772600,,Pay to Principal - Angel East,Parking Off-Street,E10HAE00144196,
http://statistics.data.gov.uk/id/local-authority/29UP,Tonbridge & Malling Borough Council,11/17/2021,0041033672/1,41033672, 825.01,NEC Software Solutions UK Ltd,01073900,202159745,Other Expenses,Housing Benefits,C05CL000048010,410032084
http://statistics.data.gov.uk/id/local-authority/29UP,Tonbridge & Malling Borough Council,11/17/2021,0041033675/1,41033675, 192.50,National Westminster Bank Plc,00069400,,Bank Charges,Banking Arrangements,D43QK000044222,
http://statistics.data.gov.uk/id/local-authority/29UP,Tonbridge & Malling Borough Council,11/17/2021,0051008618/1,51008618, 550.00,NEC Software Solutions UK Ltd,01073900,202159745,Ext Fees/Prof & Tech,Training,D10DCDF1113561,510010525
http://statistics.data.gov.uk/id/local-authority/29UP,Tonbridge & Malling Borough Council,11/17/2021,0051008619/1,51008619, 60.00,Hertsmere Borough Council,01794800,,Ext Fees/Prof & Tech,Training,D10DCDV0113561,510010524
http://statistics.data.gov.uk/id/local-authority/29UP,Tonbridge & Malling Borough Council,11/18/2021,0041033682/1,41033682, 19.95,WorldPay Ltd,01402000,991280207,Credit Card Commission,Banking Arrangements,D43QK000044082,
http://statistics.data.gov.uk/id/local-authority/29UP,Tonbridge & Malling Borough Council,11/18/2021,0041033683/1,41033683, 176.62,Utax UK Ltd,01658500,642302771,Copy Charges,Multi Function Devices,D22GB000040125,
http://statistics.data.gov.uk/id/local-authority/29UP,Tonbridge & Malling Borough Council,11/19/2021,0041033686/1,41033686, 15.00,WorldPay ,01568000,,Credit Card Commission,Banking Arrangements,D43QK000044082,
http://statistics.data.gov.uk/id/local-authority/29UP,Tonbridge & Malling Borough Council,11/19/2021,0041033687/1,41033687, 220.58,WorldPay ,01568000,,Credit Card Commission,Banking Arrangements,D43QK000044082,
http://statistics.data.gov.uk/id/local-authority/29UP,Tonbridge & Malling Borough Council,11/19/2021,0041033688/1,41033688, 737.71,WorldPay ,01568000,,Credit Card Commission,Banking Arrangements,D43QK000044082,
http://statistics.data.gov.uk/id/local-authority/29UP,Tonbridge & Malling Borough Council,11/22/2021,0041033689/1,41033689, 3034.58,Clarion Housing,01776300,,Contribution from Other Bodies,Homelessness,C01AACV1995001,
http://statistics.data.gov.uk/id/local-authority/29UP,Tonbridge & Malling Borough Council,11/22/2021,0041033691/1,41033691, 7635.39,Clarion Housing,01776300,,Contribution from Other Bodies,Homelessness,C01AACV1995001,
http://statistics.data.gov.uk/id/local-authority/29UP,Tonbridge & Malling Borough Council,11/22/2021,0041033694/1,41033694, 2332.00,H.M. Revenue & Customs,00048400,,Levy Payment,Apprenticeship Scheme,D10DE000013700,
http://statistics.data.gov.uk/id/local-authority/29UP,Tonbridge & Malling Borough Council,11/22/2021,0041033694/2,41033694, 1.00,H.M. Revenue & Customs,00048400,,Levy Payment,Apprenticeship Scheme,D10DE000013700,
http://statistics.data.gov.uk/id/local-authority/29UP,Tonbridge & Malling Borough Council,11/24/2021,0011043475/1,11043475, 1029.00,Furniture At Work Ltd,01809000,,Purchases,Cleaning & Security,D21FDDD6040101,110069227
http://statistics.data.gov.uk/id/local-authority/29UP,Tonbridge & Malling Borough Council,11/24/2021,0011043476/1,11043476, 29.70,KCS,00054200,,Cleaning & Domestic Supplies,Cleaning & Security,D21FD000026001,110069258
http://statistics.data.gov.uk/id/local-authority/29UP,Tonbridge & Malling Borough Council,11/24/2021,0011043476/2,11043476, 147.00,KCS,00054200,,Cleaning & Domestic Supplies,Cleaning & Security,D21FD000026001,110069258
http://statistics.data.gov.uk/id/local-authority/29UP,Tonbridge & Malling Borough Council,11/24/2021,0011043476/3,11043476, 39.60,KCS,00054200,,Cleaning & Domestic Supplies,Cleaning & Security,D21FD000026001,110069258
http://statistics.data.gov.uk/id/local-authority/29UP,Tonbridge & Malling Borough Council,11/24/2021,0011043476/4,11043476, 22.40,KCS,00054200,,Cleaning & Domestic Supplies,Cleaning & Security,D21FD000026001,110069258
http://statistics.data.gov.uk/id/local-authority/29UP,Tonbridge & Malling Borough Council,11/24/2021,0011043476/5,11043476, 7.95,KCS,00054200,,Cleaning & Domestic Supplies,Cleaning & Security,D21FD000026001,110069258
http://statistics.data.gov.uk/id/local-authority/29UP,Tonbridge & Malling Borough Council,11/24/2021,0011043476/6,11043476, 48.00,KCS,00054200,,Cleaning & Domestic Supplies,Cleaning & Security,D21FD000026001,110069258
http://statistics.data.gov.uk/id/local-authority/29UP,Tonbridge & Malling Borough Council,11/24/2021,0011043477/1,11043477, 456.00,BML Building Services Ltd,01505000,,BRREP Response - General,Angel Centre,M15HAP50001997,110069289
http://statistics.data.gov.uk/id/local-authority/29UP,Tonbridge & Malling Borough Council,11/24/2021,0011043478/1,11043478, 275.00,Phoenix Fireworks Ltd,01008600,,Miscellaneous Services,Cleaning & Security,D21FD000044015,110069214
http://statistics.data.gov.uk/id/local-authority/29UP,Tonbridge & Malling Borough Council,11/24/2021,0011043479/1,11043479, 1737.50,BML Building Services Ltd,01505000,,BRREP Resp - Vandal / Break-In,Pleasure Grounds & Open Spaces,M15HHP50001998,110069251
http://statistics.data.gov.uk/id/local-authority/29UP,Tonbridge & Malling Borough Council,11/24/2021,0011043480/1,11043480, 181.00,Loxton Installations Ltd,01278800,,BRREP IEE Testing,Larkfield Leisure Centre,M15HDP30001991,110068905
http://statistics.data.gov.uk/id/local-authority/29UP,Tonbridge & Malling Borough Council,11/24/2021,0011043481/1,11043481, 596.00,Loxton Installations Ltd,01278800,,BRREP Response - General,Tonbridge Castle / CAB,M15KFP50001997,110069147
http://statistics.data.gov.uk/id/local-authority/29UP,Tonbridge & Malling Borough Council,11/24/2021,0011043482/1,11043482, 6802.00,Loxton Installations Ltd,01278800,,BRREP IEE Testing,Angel Centre,M15HAP30001991,110069148
http://statistics.data.gov.uk/id/local-authority/29UP,Tonbridge & Malling Borough Council,11/24/2021,0011043483/1,11043483, 942.00,Loxton Installations Ltd,01278800,,BRREP Servicing-CarParkLightg,Larkfield Leisure Centre,M15HDP20001944,110069261
http://statistics.data.gov.uk/id/local-authority/29UP,Tonbridge & Malling Borough Council,11/24/2021,0011043484/1,11043484, 1216.00,Loxton Installations Ltd,01278800,,BRREP Servicing-CarParkLightg,Larkfield Leisure Centre,M15HDP20001944,110069249
http://statistics.data.gov.uk/id/local-authority/29UP,Tonbridge & Malling Borough Council,11/24/2021,0011043485/1,11043485, 830.00,Loxton Installations Ltd,01278800,,BRREP IEE Testing,Tonbridge Farm Pavillion,M15HGP30001991,110069149
http://statistics.data.gov.uk/id/local-authority/29UP,Tonbridge & Malling Borough Council,11/24/2021,0011043486/1,11043486, 3850.00,GI Carpets Ltd,00953500,,BRREP Carpet / Floors - Public,Tonbridge Castle / CAB,M15KFP20001926,110069273
http://statistics.data.gov.uk/id/local-authority/29UP,Tonbridge & Malling Borough Council,11/24/2021,0011043487/1,11043487, 11.50,KCS,00054200,,Purchases,Customer Services,D23CS000040101,110069300
http://statistics.data.gov.uk/id/local-authority/29UP,Tonbridge & Malling Borough Council,11/24/2021,0011043488/1,11043488, 200.00,G C Industrial Heating Services,00578100,,BRREP Servicing-water chillers,Tonbridge Castle / CAB,M15KFP20001933,110069224
http://statistics.data.gov.uk/id/local-authority/29UP,Tonbridge & Malling Borough Council,11/24/2021,0011043489/1,11043489, 300.00,G C Industrial Heating Services,00578100,,BRREP Servicing-water chillers,Tonbridge Castle / CAB,M15KFP20001933,110069221
http://statistics.data.gov.uk/id/local-authority/29UP,Tonbridge & Malling Borough Council,11/24/2021,0011043490/1,11043490, 480.00,G C Industrial Heating Services,00578100,,BRREP Legionella Certification,Tonbridge Castle / CAB,M15KFP30001995,110069106
http://statistics.data.gov.uk/id/local-authority/29UP,Tonbridge & Malling Borough Council,11/24/2021,0011043491/1,11043491, 610.00,G C Industrial Heating Services,00578100,,BRREP Servicing-water chillers,Gibson Building West,M15KBP20001933,110069219
http://statistics.data.gov.uk/id/local-authority/29UP,Tonbridge & Malling Borough Council,11/24/2021,0011043492/1,11043492, 770.00,G C Industrial Heating Services,00578100,,BRREP Servicing-water chillers,Gibson Building East,M15KGP20001933,110069220
http://statistics.data.gov.uk/id/local-authority/29UP,Tonbridge & Malling Borough Council,11/24/2021,0011043493/1,11043493, 350.00,G C Industrial Heating Services,00578100,,BRREP Servicing-water chillers,Gibson Building East,M15KGP20001933,110069223
http://statistics.data.gov.uk/id/local-authority/29UP,Tonbridge & Malling Borough Council,11/24/2021,0011043494/1,11043494, 300.00,G C Industrial Heating Services,00578100,,BRREP Servicing-water chillers,Gibson Building West,M15KBP20001933,110069222
http://statistics.data.gov.uk/id/local-authority/29UP,Tonbridge & Malling Borough Council,11/24/2021,0011043495/1,11043495, 855.00,G C Industrial Heating Services,00578100,,BRREP Legionella Certification,Gibson Building West,M15KBP30001995,110069107
http://statistics.data.gov.uk/id/local-authority/29UP,Tonbridge & Malling Borough Council,11/24/2021,0011043495/2,11043495, 855.00,G C Industrial Heating Services,00578100,,BRREP Legionella Certification,Gibson Building East,M15KGP30001995,110069107
http://statistics.data.gov.uk/id/local-authority/29UP,Tonbridge & Malling Borough Council,11/24/2021,0011043496/1,11043496, 330.00,G C Industrial Heating Services,00578100,,BRREP Response - General,Grnd Mtce Poult Wood Golf Cent,M15HFP50001997,110069287
http://statistics.data.gov.uk/id/local-authority/29UP,Tonbridge & Malling Borough Council,11/24/2021,0011043497/1,11043497, 310.00,G C Industrial Heating Services,00578100,,BRREP Response - General,Larkfield Leisure Centre,M15HDP50001997,110069252
http://statistics.data.gov.uk/id/local-authority/29UP,Tonbridge & Malling Borough Council,11/24/2021,0011043498/1,11043498, 350.00,Monitor Pest Control Ltd,01476700,,BRREP Rodent Control,Tonbridge Castle / CAB,M15KFP20001949,110069302
http://statistics.data.gov.uk/id/local-authority/29UP,Tonbridge & Malling Borough Council,11/24/2021,0011043499/1,11043499, 55.00,Triple S Lift Services,01344900,,BRREP Servicing - lifts,Angel Centre,M15HAP20001930,110069286
http://statistics.data.gov.uk/id/local-authority/29UP,Tonbridge & Malling Borough Council,11/24/2021,0011043500/1,11043500, 109.00,BML Building Services Ltd,01505000,,BRREP Response - General,PC - General,M15JAP50001997,110069244
http://statistics.data.gov.uk/id/local-authority/29UP,Tonbridge & Malling Borough Council,11/24/2021,0011043501/1,11043501, 420.00,Monitor Pest Control Ltd,01476700,,BRREP Rodent Control,Gibson Building West,M15KBP20001949,110069298
http://statistics.data.gov.uk/id/local-authority/29UP,Tonbridge & Malling Borough Council,11/24/2021,0011043502/1,11043502, 424.00,BML Building Services Ltd,01505000,,BRREP General Maintenance,PC - General,M15JAP10001900,110069271
http://statistics.data.gov.uk/id/local-authority/29UP,Tonbridge & Malling Borough Council,11/24/2021,0011043503/1,11043503, 730.00,G C Industrial Heating Services,00578100,,BRREP Response - General,Leis Man Poult Wood Golf Centr,M15HEP50001997,110069272
http://statistics.data.gov.uk/id/local-authority/29UP,Tonbridge & Malling Borough Council,11/24/2021,0011043504/1,11043504, 510.00,G C Industrial Heating Services,00578100,,BRREP Legionella Certification,Tonbridge Castle / CAB,M15KFP30001995,110069277
http://statistics.data.gov.uk/id/local-authority/29UP,Tonbridge & Malling Borough Council,11/24/2021,0011043505/1,11043505, 459.60,Westcountry Group,00656400,,Purchases,Central Stationery Stock A/c,K03AD000001002,110069282
http://statistics.data.gov.uk/id/local-authority/29UP,Tonbridge & Malling Borough Council,11/24/2021,0011043507/1,11043507, 474.10,Coolburn Air Conditioning Ltd,01137900,,BRREP Servicing-Air Condition,Gibson Building West,M15KBP20001935,110068816
http://statistics.data.gov.uk/id/local-authority/29UP,Tonbridge & Malling Borough Council,11/24/2021,0011043509/1,11043509, 80.00,The Shrievalty Assoication of Canterbury,01823300,,Hospitality,Mayoral & Other Member Support,D29LX000048003,
http://statistics.data.gov.uk/id/local-authority/29UP,Tonbridge & Malling Borough Council,11/24/2021,0011043510/3,11043510, 425.00,Driven to perfection,01541000,,Mayors Transport Allowance,Mayoral & Other Member Support,D29LX000034111,
http://statistics.data.gov.uk/id/local-authority/29UP,Tonbridge & Malling Borough Council,11/24/2021,0011043511/3,11043511, 1288.77,Henny Ltd,01124300,,BRREP Response - General,Leis Man Poult Wood Golf Centr,M15HEP50001997,
http://statistics.data.gov.uk/id/local-authority/29UP,Tonbridge & Malling Borough Council,11/24/2021,0011043512/3,11043512, 100.00,BML Building Services Ltd,01505000,,BRREP Response - General,PC - General,M15JAP50001997,
http://statistics.data.gov.uk/id/local-authority/29UP,Tonbridge & Malling Borough Council,11/24/2021,0011043513/1,11043513, 8000.00,Tonbridge & Malling Safer Towns,00103900,,H&CG Fund Council Specific,Eco Dev & Reg Gen Bus Support,D52TD000047027,
http://statistics.data.gov.uk/id/local-authority/29UP,Tonbridge & Malling Borough Council,11/24/2021,0011043514/3,11043514, 225.00,Ricoh UK Ltd,01402300,,Maintenance - General,Printing,D22GA000040135,
http://statistics.data.gov.uk/id/local-authority/29UP,Tonbridge & Malling Borough Council,11/24/2021,0011043515/1,11043515, 242.58,Canon (UK) Limited,00298700,,Purchases - Paper,Multi Function Devices,D22GB000040102,
http://statistics.data.gov.uk/id/local-authority/29UP,Tonbridge & Malling Borough Council,11/24/2021,0011043516/1,11043516, 162.00,Prosec General Security Ltd,00810600,,Office Security,Ton Castle Council Chamber,D21FC000044047,
http://statistics.data.gov.uk/id/local-authority/29UP,Tonbridge & Malling Borough Council,11/24/2021,0011043516/2,11043516, 659.05,Prosec General Security Ltd,00810600,,Office Security,Cleaning & Security,D21FD000044047,
http://statistics.data.gov.uk/id/local-authority/29UP,Tonbridge & Malling Borough Council,11/24/2021,0011043516/3,11043516, 3003.75,Prosec General Security Ltd,00810600,,Office Security,Tonbridge Gateway,D23TG000044047,
http://statistics.data.gov.uk/id/local-authority/29UP,Tonbridge & Malling Borough Council,11/24/2021,0011043517/1,11043517, 70.80,EDF Energy Customers plc,01035000,,Estate Management Charge,Land Review,D40PS000020400,
http://statistics.data.gov.uk/id/local-authority/29UP,Tonbridge & Malling Borough Council,11/24/2021,0011043518/1,11043518, 1.60,Royal Mail,00086200,,Purchases,Mailsort Stock Account,K37BR000001002,
http://statistics.data.gov.uk/id/local-authority/29UP,Tonbridge & Malling Borough Council,11/24/2021,0011043518/2,11043518, 1775.89,Royal Mail,00086200,,Purchases,Mailsort Stock Account,K37BR000001002,
http://statistics.data.gov.uk/id/local-authority/29UP,Tonbridge & Malling Borough Council,11/24/2021,0011043519/1,11043519, 315.00,Royal British Legion Industries Ltd,00139700,,H&CG Fund Council Specific,Eco Dev & Reg Gen Bus Support,D52TD000047027,
http://statistics.data.gov.uk/id/local-authority/29UP,Tonbridge & Malling Borough Council,11/24/2021,0011043520/1,11043520, 5000.00,SPA CAFFE LIMITED,00127100,,H&CG Fund Council Specific,Eco Dev & Reg Gen Bus Support,D52TD000047027,
http://statistics.data.gov.uk/id/local-authority/29UP,Tonbridge & Malling Borough Council,11/24/2021,0011043521/1,11043521, 70.00,Archant Community Media Ltd,00831700,,Marketing,Ton Castle Council Chamber,D21FC000044215,
http://statistics.data.gov.uk/id/local-authority/29UP,Tonbridge & Malling Borough Council,11/24/2021,0011043522/1,11043522, 10.47,Royal Mail,00086200,,Purchases,Mailsort Stock Account,K37BR000001002,
http://statistics.data.gov.uk/id/local-authority/29UP,Tonbridge & Malling Borough Council,11/24/2021,0011043522/2,11043522, 1345.54,Royal Mail,00086200,,Purchases,Mailsort Stock Account,K37BR000001002,
http://statistics.data.gov.uk/id/local-authority/29UP,Tonbridge & Malling Borough Council,11/24/2021,0011043523/1,11043523, 762.60,Encore Envelopes Ltd,01750600,,Stationery,Electoral Registration,D31MF000043003,
http://statistics.data.gov.uk/id/local-authority/29UP,Tonbridge & Malling Borough Council,11/24/2021,0011043524/1,11043524, 1722.00,BML Building Services Ltd,01505000,,BRREP Pool tile repairs,Larkfield Leisure Centre,M15HDP20001906,
http://statistics.data.gov.uk/id/local-authority/29UP,Tonbridge & Malling Borough Council,11/24/2021,0011043525/1,11043525, 31.64,Castle Water,01696500,,Estate Management Charge,Land Review,D40PS000020400,
http://statistics.data.gov.uk/id/local-authority/29UP,Tonbridge & Malling Borough Council,11/24/2021,0011043526/1,11043526, 147.84,Scottish Water Business Stream Ltd,01641100,,Sewerage Charges,Buildings,D21FEDD5024003,
http://statistics.data.gov.uk/id/local-authority/29UP,Tonbridge & Malling Borough Council,11/24/2021,0011043527/3,11043527, 2058.98,KCS,00054200,,Gas,Buildings,D21FEDD1021003,
http://statistics.data.gov.uk/id/local-authority/29UP,Tonbridge & Malling Borough Council,11/24/2021,0011043528/3,11043528, 934.05,KCS,00054200,,Gas,Buildings,D21FEDD6021003,
http://statistics.data.gov.uk/id/local-authority/29UP,Tonbridge & Malling Borough Council,11/24/2021,0011043529/3,11043529, 344.83,Initial Washroom Hygiene,00048300,,Laundry - Roller Towels,Cleaning & Security,D21FD000042003,
http://statistics.data.gov.uk/id/local-authority/29UP,Tonbridge & Malling Borough Council,11/24/2021,0011043531/3,11043531, 540.00,G C Industrial Heating Services,00578100,,BRREP Response - General,Larkfield Leisure Centre,M15HDP50001997,
http://statistics.data.gov.uk/id/local-authority/29UP,Tonbridge & Malling Borough Council,11/24/2021,0011043532/3,11043532, 120.00,G C Industrial Heating Services,00578100,,BRREP Response - General,Tonbridge Castle / CAB,M15KFP50001997,
http://statistics.data.gov.uk/id/local-authority/29UP,Tonbridge & Malling Borough Council,11/24/2021,0011043533/1,11043533, 50.00,Margate Charter Trustees,00563900,,Hospitality,Mayoral & Other Member Support,D29LX000048003,
http://statistics.data.gov.uk/id/local-authority/29UP,Tonbridge & Malling Borough Council,11/24/2021,0011043534/3,11043534, 230.00,Premier Group Recycling Ltd,01365300,,Confidential Waste,Cleaning & Security,D21FD000044009,
http://statistics.data.gov.uk/id/local-authority/29UP,Tonbridge & Malling Borough Council,11/24/2021,0011043535/3,11043535, 158.00,BML Building Services Ltd,01505000,,BRREP Window/door repairs,Tonbridge Castle / CAB,M15KFP20001919,
http://statistics.data.gov.uk/id/local-authority/29UP,Tonbridge & Malling Borough Council,11/24/2021,0011043536/3,11043536, 280.00,G C Industrial Heating Services,00578100,,BRREP Response - General,Larkfield Leisure Centre,M15HDP50001997,
http://statistics.data.gov.uk/id/local-authority/29UP,Tonbridge & Malling Borough Council,11/24/2021,0011043537/3,11043537, 180.00,Record UK Ltd,01116900,,BRREP Servicing-entrance doors,Tonbridge Swimming Pool,M15HBP20001927,
http://statistics.data.gov.uk/id/local-authority/29UP,Tonbridge & Malling Borough Council,11/24/2021,0012008193/3,12008193, 75.00,Get It Repaired,01631300,287357752,Maintenance - Micros,Information Technology,D27KD000040140,
http://statistics.data.gov.uk/id/local-authority/29UP,Tonbridge & Malling Borough Council,11/24/2021,0012008194/3,12008194, 14980.95,Phoenix Software Ltd,00077400,755349015,Software Hire & Support,Information Technology,D27KD000044059,
http://statistics.data.gov.uk/id/local-authority/29UP,Tonbridge & Malling Borough Council,11/24/2021,0012008195/1,12008195, 79.99,CCS Media Ltd,00018000,,Purchases,Information Technology,D27KD000040101,410032082
http://statistics.data.gov.uk/id/local-authority/29UP,Tonbridge & Malling Borough Council,11/24/2021,0012008195/2,12008195, 4.00,CCS Media Ltd,00018000,,Delivery Expenses,Information Technology,D27KD000044069,410032082
http://statistics.data.gov.uk/id/local-authority/29UP,Tonbridge & Malling Borough Council,11/24/2021,0012008196/3,12008196, 995.00,Socitm Ltd,00906400,,Subscriptions,Information Technology,D27KD000047002,
http://statistics.data.gov.uk/id/local-authority/29UP,Tonbridge & Malling Borough Council,11/24/2021,0021037579/1,21037579, 595.00,Flash Mobile Welding Services Ltd,01189200,,Maintenance of Grounds,Sports Grounds,B13ET000020402,210056581
http://statistics.data.gov.uk/id/local-authority/29UP,Tonbridge & Malling Borough Council,11/24/2021,0021037580/1,21037580, 145.00,David Hodgkinson Photographer,01068900,,Re-opening High Streets,Eco Dev & Reg Gen Bus Support,D52TDCV1948076,210056568
http://statistics.data.gov.uk/id/local-authority/29UP,Tonbridge & Malling Borough Council,11/24/2021,0021037580/2,21037580, 135.00,David Hodgkinson Photographer,01068900,,Re-opening High Streets,Eco Dev & Reg Gen Bus Support,D52TDCV1948076,210056568
http://statistics.data.gov.uk/id/local-authority/29UP,Tonbridge & Malling Borough Council,11/24/2021,0021037581/1,21037581, 17.95,Discount Displays,01068700,,Re-opening High Streets,Eco Dev & Reg Gen Bus Support,D52TDCV1948076,210056530
http://statistics.data.gov.uk/id/local-authority/29UP,Tonbridge & Malling Borough Council,11/24/2021,0021037581/2,21037581, 1026.00,Discount Displays,01068700,,Re-opening High Streets,Eco Dev & Reg Gen Bus Support,D52TDCV1948076,210056530
http://statistics.data.gov.uk/id/local-authority/29UP,Tonbridge & Malling Borough Council,11/24/2021,0021037581/3,21037581, 1197.00,Discount Displays,01068700,,Re-opening High Streets,Eco Dev & Reg Gen Bus Support,D52TDCV1948076,210056530
http://statistics.data.gov.uk/id/local-authority/29UP,Tonbridge & Malling Borough Council,11/24/2021,0021037582/1,21037582, 228.00,Matt Stephens,01802100,,Events Support,Events Development,B41TJ000044041,210056553
http://statistics.data.gov.uk/id/local-authority/29UP,Tonbridge & Malling Borough Council,11/24/2021,0021037583/1,21037583, 590.00,Matt Stephens,01802100,,Events Support,Events Development,B41TJ000044041,210056554
http://statistics.data.gov.uk/id/local-authority/29UP,Tonbridge & Malling Borough Council,11/24/2021,0021037584/1,21037584, 600.00,Atlas Facilities Managment Limited ,01075900,,Gates / Security,Patrolling,B22LF000044017,210056489
http://statistics.data.gov.uk/id/local-authority/29UP,Tonbridge & Malling Borough Council,11/24/2021,0021037584/2,21037584, 20.00,Atlas Facilities Managment Limited ,01075900,,Gates / Security,Patrolling,B22LF000044017,210056489
http://statistics.data.gov.uk/id/local-authority/29UP,Tonbridge & Malling Borough Council,11/24/2021,0021037585/1,21037585, 2755.30,Burslem Memorials Ltd,01013400,,Re-opening High Streets,Eco Dev & Reg Gen Bus Support,D52TDCV1948076,210056412
http://statistics.data.gov.uk/id/local-authority/29UP,Tonbridge & Malling Borough Council,11/24/2021,0021037586/1,21037586, 546.99,Glasdon U.K. Ltd,00039200,,Maintenance of Grounds,Open Spaces & Amenity Areas,B22LE000020402,210056571
http://statistics.data.gov.uk/id/local-authority/29UP,Tonbridge & Malling Borough Council,11/24/2021,0021037587/1,21037587, 240.00,Green Oak Services,01635000,,Health & Safety - Trees,Countryside/Woodland Mgt,B22LG000044045,210056566
http://statistics.data.gov.uk/id/local-authority/29UP,Tonbridge & Malling Borough Council,11/24/2021,0021037589/1,21037589, 621.00,Streetmaster (South Wales) Ltd,00222100,,Maintenance of Grounds,Sports Grounds,B13ET000020402,210056430
http://statistics.data.gov.uk/id/local-authority/29UP,Tonbridge & Malling Borough Council,11/24/2021,0021037590/1,21037590, 688.40,Streetmaster (South Wales) Ltd,00222100,,Maintenance of Grounds,Sports Grounds,B13ET000020402,210056555
http://statistics.data.gov.uk/id/local-authority/29UP,Tonbridge & Malling Borough Council,11/24/2021,0021037591/1,21037591, 662.50,Streetmaster (South Wales) Ltd,00222100,,Maintenance of Grounds,Open Spaces & Amenity Areas,B22LE000020402,210056473
http://statistics.data.gov.uk/id/local-authority/29UP,Tonbridge & Malling Borough Council,11/24/2021,0021037592/1,21037592, 1260.00,Treework,00560700,,Tonbridge Christmas Lighting,Eco Dev & Reg Ton Chris Light,D52TF000047015,210056558
http://statistics.data.gov.uk/id/local-authority/29UP,Tonbridge & Malling Borough Council,11/24/2021,0022025971/3,22025971, 65.88,Peoplesafe -  Skyguard Ltd,01779900,,Minimum Energy Efficiency Proj,Private Sector Housing Renewal,C03BD000044032,
http://statistics.data.gov.uk/id/local-authority/29UP,Tonbridge & Malling Borough Council,11/24/2021,0022025972/3,22025972, 131.76,Peoplesafe -  Skyguard Ltd,01779900,,Purchases,Env Hlth & Hsg Sals&Overheads,D01AVDV0340101,
http://statistics.data.gov.uk/id/local-authority/29UP,Tonbridge & Malling Borough Council,11/24/2021,0022025991/3,22025991, 94.58,British Gas,01148500,,Electricity,Homelessness,C01AAMAUN21002,
http://statistics.data.gov.uk/id/local-authority/29UP,Tonbridge & Malling Borough Council,11/24/2021,0022025992/1,22025992, 375.12,Peabody South East LTD,01680900,,Other Expenses,Disabled Facilities Grant Mand,P03AC000009908,
http://statistics.data.gov.uk/id/local-authority/29UP,Tonbridge & Malling Borough Council,11/24/2021,0022025993/3,22025993, 11.12,Bulb Energy Ltd,01799000,214948301,Electricity,Homelessness,C01AATNHS21002,
http://statistics.data.gov.uk/id/local-authority/29UP,Tonbridge & Malling Borough Council,11/24/2021,0022025994/1,22025994, 61.54,Greenham Trading Ltd,00127900,745138823,Health General,Env Hlth & Hsg Sals&Overheads,D01AVDV0744049,220003168
http://statistics.data.gov.uk/id/local-authority/29UP,Tonbridge & Malling Borough Council,11/24/2021,0022025995/1,22025995, 76.00,REDACTED PERSONAL DATA,00084200,,Temporary Accommodation,Homelessness,C01AA000044051,
http://statistics.data.gov.uk/id/local-authority/29UP,Tonbridge & Malling Borough Council,11/24/2021,0022025996/3,22025996, 275.21,Bulb Energy Ltd,01799000,214948301,Electricity,Homelessness,C01AATNHS21002,
http://statistics.data.gov.uk/id/local-authority/29UP,Tonbridge & Malling Borough Council,11/24/2021,0022025997/3,22025997, 14.60,Amazon EU SARL,01738400,,Other Expenses,Refuse Collection,H20SA000048010,
http://statistics.data.gov.uk/id/local-authority/29UP,Tonbridge & Malling Borough Council,11/24/2021,0022025998/1,22025998, 46.61,Maidstone Borough Council,01173700,,Council Tax,Homelessness,C01AA000023002,
http://statistics.data.gov.uk/id/local-authority/29UP,Tonbridge & Malling Borough Council,11/24/2021,0022025999/3,22025999, 120.00,Riley's Removals,01695900,,Homelessness Reduction Initiat,Homelessness,C01AA000048019,
http://statistics.data.gov.uk/id/local-authority/29UP,Tonbridge & Malling Borough Council,11/24/2021,0022026000/3,22026000, 260.00,Riley's Removals,01695900,,Homelessness Reduction Initiat,Homelessness,C01AA000048019,
http://statistics.data.gov.uk/id/local-authority/29UP,Tonbridge & Malling Borough Council,11/24/2021,0022026001/1,22026001, 704.98,Peabody South East LTD,01680900,,Other Expenses,Disabled Facilities Grant Mand,P03AC000009908,
http://statistics.data.gov.uk/id/local-authority/29UP,Tonbridge & Malling Borough Council,11/24/2021,0022026002/1,22026002, 2478.00,On Site Wheelie Washers,01069700,,Other Expenses,Garden Waste Recycling,H34ST000048010,
http://statistics.data.gov.uk/id/local-authority/29UP,Tonbridge & Malling Borough Council,11/24/2021,0022026003/1,22026003, 525.00,On Site Wheelie Washers,01069700,,Other Expenses,Garden Waste Recycling,H34ST000048010,
http://statistics.data.gov.uk/id/local-authority/29UP,Tonbridge & Malling Borough Council,11/24/2021,0022026004/1,22026004, 876.50,On Site Wheelie Washers,01069700,,Other Expenses,Garden Waste Recycling,H34ST000048010,
http://statistics.data.gov.uk/id/local-authority/29UP,Tonbridge & Malling Borough Council,11/24/2021,0022026005/3,22026005, 763.31,G2 Recruitment Solutions,01786000,,Temporary Staff,Env Hlth & Hsg Sals&Overheads,D01AVDV0711300,
http://statistics.data.gov.uk/id/local-authority/29UP,Tonbridge & Malling Borough Council,11/24/2021,0022026006/1,22026006, 1790.00,Kent Housing,01503200,,Temporary Accommodation,Homelessness,C01AA000044051,
http://statistics.data.gov.uk/id/local-authority/29UP,Tonbridge & Malling Borough Council,11/24/2021,0022026007/1,22026007, 10.90,Maidstone Borough Council,01173700,,Council Tax,Homelessness,C01AA000023002,
http://statistics.data.gov.uk/id/local-authority/29UP,Tonbridge & Malling Borough Council,11/24/2021,0022026008/1,22026008, 486.71,Maidstone Borough Council,01173700,,Council Tax,Homelessness,C01AA000023002,
http://statistics.data.gov.uk/id/local-authority/29UP,Tonbridge & Malling Borough Council,11/24/2021,0022026009/11,22026009, 1239.50,Vivid Resourcing,01773700,,Temporary Staff,Env Hlth & Hsg Sals&Overheads,D01AVDV0711300,
http://statistics.data.gov.uk/id/local-authority/29UP,Tonbridge & Malling Borough Council,11/24/2021,0022026010/1,22026010, 5000.00,CJB Services,01823200,,Other Expenses,Disabled Facilities Grant Mand,P03AC000009908,
http://statistics.data.gov.uk/id/local-authority/29UP,Tonbridge & Malling Borough Council,11/24/2021,0022026011/1,22026011, 10412.98,All Home Services Ltd,01802400,,Other Expenses,Disabled Facilities Grant Mand,P03AC000009908,
http://statistics.data.gov.uk/id/local-authority/29UP,Tonbridge & Malling Borough Council,11/24/2021,0022026012/1,22026012, 1505.47,Peabody South East LTD,01680900,,Other Expenses,Disabled Facilities Grant Mand,P03AC000009908,
http://statistics.data.gov.uk/id/local-authority/29UP,Tonbridge & Malling Borough Council,11/24/2021,0022026013/1,22026013, 2952.00,Hubbard & Houghton Construction Ltd,00970600,,Other Expenses,Disabled Facilities Grant Mand,P03AC000009908,
http://statistics.data.gov.uk/id/local-authority/29UP,Tonbridge & Malling Borough Council,11/24/2021,0022026014/1,22026014, 431.09,Peabody South East LTD,01680900,,Other Expenses,Disabled Facilities Grant Mand,P03AC000009908,
http://statistics.data.gov.uk/id/local-authority/29UP,Tonbridge & Malling Borough Council,11/24/2021,0022026015/1,22026015, 19022.27,Acorn Maintenance Services,01036000,,Other Expenses,Disabled Facilities Grant Mand,P03AC000009908,
http://statistics.data.gov.uk/id/local-authority/29UP,Tonbridge & Malling Borough Council,11/24/2021,0022026016/3,22026016, 1584.00,The Oyster Partnership,01196400,,Temporary Staff,Env Hlth & Hsg Sals&Overheads,D01AVDV0711300,
http://statistics.data.gov.uk/id/local-authority/29UP,Tonbridge & Malling Borough Council,11/24/2021,0022026017/1,22026017, 17032.36,Consultants in Care Ltd,01764200,,Temporary Accommodation,Homelessness,C01AA000044051,
http://statistics.data.gov.uk/id/local-authority/29UP,Tonbridge & Malling Borough Council,11/24/2021,0031018287/1,31018287, 3250.00,Forge Engineering,00137700,,Contract Payments,Boro Drainage & Land Drainage,E20MA000054001,310042729
http://statistics.data.gov.uk/id/local-authority/29UP,Tonbridge & Malling Borough Council,11/24/2021,0031018296/3,31018296, 156.30,British Telecommunications Plc,00012800,,Maintenance - General,Security Services Management,E09GA000040135,
http://statistics.data.gov.uk/id/local-authority/29UP,Tonbridge & Malling Borough Council,11/24/2021,0031018297/1,31018297, 178.00,Chillmech Limited,00978700,,CCTV Monitoring Station,Security Services Management,E09GA000051020,310042714
http://statistics.data.gov.uk/id/local-authority/29UP,Tonbridge & Malling Borough Council,11/24/2021,0031018298/3,31018298, 65.47,Shell U.K. Oil Products Limited,01673300,,"Petrol, Diesel & Oil",Patrolling,B22LF000030106,
http://statistics.data.gov.uk/id/local-authority/29UP,Tonbridge & Malling Borough Council,11/24/2021,0031018298/4,31018298, 169.32,Shell U.K. Oil Products Limited,01673300,,"Petrol, Diesel & Oil",Parking Off-Street,E10HA000030106,
http://statistics.data.gov.uk/id/local-authority/29UP,Tonbridge & Malling Borough Council,11/24/2021,0031018298/5,31018298, 169.32,Shell U.K. Oil Products Limited,01673300,,"Petrol, Diesel & Oil",Parking On-Street,E10HD000030106,
http://statistics.data.gov.uk/id/local-authority/29UP,Tonbridge & Malling Borough Council,11/24/2021,0031018300/1,31018300, 4246.83,CDER Group,01773300,,Adjudication & Enforcement Ser,Parking Off-Street,E10HA000044230,
http://statistics.data.gov.uk/id/local-authority/29UP,Tonbridge & Malling Borough Council,11/24/2021,0031018302/1,31018302, 60.00,Door to Door Mobile Tyres,01591400,234388105,Winter Maintenance,Parking Off-Street,E10HA000020701,
http://statistics.data.gov.uk/id/local-authority/29UP,Tonbridge & Malling Borough Council,11/24/2021,0031018303/1,31018303, 78.00,Imagink LTD,01513300,,Tonbridge Christmas Lighting,Eco Dev & Reg Ton Chris Light,D52TF000047015,
http://statistics.data.gov.uk/id/local-authority/29UP,Tonbridge & Malling Borough Council,11/24/2021,0031018305/1,31018305, 80.50,RAC Motoring Services,01815300,,Transport Insurance,Parking Off-Street,E10HA000035001,
http://statistics.data.gov.uk/id/local-authority/29UP,Tonbridge & Malling Borough Council,11/24/2021,0031018305/2,31018305, 120.75,RAC Motoring Services,01815300,,Transport Insurance,Parking On-Street,E10HD000035001,
http://statistics.data.gov.uk/id/local-authority/29UP,Tonbridge & Malling Borough Council,11/24/2021,0031018307/1,31018307, 1200.00,Arnold & Court Ltd,01411300,,Contract Payments,LLCP Path Improvements,P05FH000009904,210056537
http://statistics.data.gov.uk/id/local-authority/29UP,Tonbridge & Malling Borough Council,11/24/2021,0031018308/1,31018308, 800.00,Arnold & Court Ltd,01411300,,Contract Payments,Boro Drainage & Land Drainage,E20MA000054001,310042725
http://statistics.data.gov.uk/id/local-authority/29UP,Tonbridge & Malling Borough Council,11/24/2021,0031018309/1,31018309, 400.00,Arnold & Court Ltd,01411300,,Bridge Maintenance,Open Spaces & Amenity Areas,B22LE000020505,210056547
http://statistics.data.gov.uk/id/local-authority/29UP,Tonbridge & Malling Borough Council,11/24/2021,0031018309/2,31018309, 100.00,Arnold & Court Ltd,01411300,,Bridge Maintenance,Open Spaces & Amenity Areas,B22LE000020505,210056547
http://statistics.data.gov.uk/id/local-authority/29UP,Tonbridge & Malling Borough Council,11/24/2021,0031018310/3,31018310, 472.00,Arnold & Court Ltd,01411300,,Contract Payments,Boro Drainage & Land Drainage,E20MA000054001,
http://statistics.data.gov.uk/id/local-authority/29UP,Tonbridge & Malling Borough Council,11/24/2021,0031018311/3,31018311, 414.20,Arnold & Court Ltd,01411300,,Contract Payments,Boro Drainage & Land Drainage,E20MA000054001,
http://statistics.data.gov.uk/id/local-authority/29UP,Tonbridge & Malling Borough Council,11/24/2021,0031018312/1,31018312, 600.00,Arnold & Court Ltd,01411300,,Premises Repairs & Maintenance,Parking Off-Street,E10HA000020601,310042656
http://statistics.data.gov.uk/id/local-authority/29UP,Tonbridge & Malling Borough Council,11/24/2021,0032009317/1,32009317, 2.20,KCS,00054200,,Stationery,Planning Sals&Overheads,D01AJDJ0143003,320003358
http://statistics.data.gov.uk/id/local-authority/29UP,Tonbridge & Malling Borough Council,11/24/2021,0032009318/1,32009318, 388.64,KM Media Group Ltd,00053900,,Advertising General,Development Management,A01ABZ99944216,320003353
http://statistics.data.gov.uk/id/local-authority/29UP,Tonbridge & Malling Borough Council,11/24/2021,0032009319/3,32009319, 1500.00,The Oyster Partnership,01196400,,Temporary Staff,Planning Sals&Overheads,D01AJDJ0111300,
http://statistics.data.gov.uk/id/local-authority/29UP,Tonbridge & Malling Borough Council,11/24/2021,0041033673/3,41033673, 482.63,KH Recruitment Ltd,01738900,,Temporary Staff,Finance Sals&Overheads,D01AFDF1111300,
http://statistics.data.gov.uk/id/local-authority/29UP,Tonbridge & Malling Borough Council,11/24/2021,0041033676/3,41033676, 989.65,Maidstone Borough Council,01173700,,Bailiffs Commission,Local Revenue & NNDR Collect,D41QA000044075,
http://statistics.data.gov.uk/id/local-authority/29UP,Tonbridge & Malling Borough Council,11/24/2021,0041033677/3,41033677, 390.54,Rundle & Co Ltd,00087200,,Bailiffs Commission,Local Revenue & NNDR Collect,D41QA000044075,
http://statistics.data.gov.uk/id/local-authority/29UP,Tonbridge & Malling Borough Council,11/24/2021,0041033678/3,41033678, 720.17,Rundle & Co Ltd,00087200,,Bailiffs Commission,Local Revenue & NNDR Collect,D41QA000044075,
http://statistics.data.gov.uk/id/local-authority/29UP,Tonbridge & Malling Borough Council,11/24/2021,0041033679/3,41033679, 980.50,Morgan Hunt UK Ltd,01086900,,Temporary Staff,Finance Sals&Overheads,D01AFDF1111300,
http://statistics.data.gov.uk/id/local-authority/29UP,Tonbridge & Malling Borough Council,11/24/2021,0041033680/3,41033680, 887.50,Morgan Hunt UK Ltd,01086900,,Temporary Staff,Finance Sals&Overheads,D01AFDF1111300,
http://statistics.data.gov.uk/id/local-authority/29UP,Tonbridge & Malling Borough Council,11/24/2021,0041033699/1,41033699, 8.60,KCS,00054200,,Stationery,Finance Sals&Overheads,D01AF000043003,410032086
http://statistics.data.gov.uk/id/local-authority/29UP,Tonbridge & Malling Borough Council,11/24/2021,0041033699/2,41033699, 37.00,KCS,00054200,,Stationery,Finance Sals&Overheads,D01AF000043003,410032086
http://statistics.data.gov.uk/id/local-authority/29UP,Tonbridge & Malling Borough Council,11/24/2021,0041033699/3,41033699, 3.75,KCS,00054200,,Stationery,Finance Sals&Overheads,D01AF000043003,410032086
http://statistics.data.gov.uk/id/local-authority/29UP,Tonbridge & Malling Borough Council,11/24/2021,0041033705/1,41033705, 650.00,Big Help Homes,01823500,,Repossessions Prevention Fund,Homelessness,C01AA000044054,
http://statistics.data.gov.uk/id/local-authority/29UP,Tonbridge & Malling Borough Council,11/24/2021,0041033705/2,41033705, 750.00,Big Help Homes,01823500,,Rent Deposit / Rent in Advance,Homelessness,C01AAC84944093,
http://statistics.data.gov.uk/id/local-authority/29UP,Tonbridge & Malling Borough Council,11/24/2021,0051008621/1,51008621, 250.00,Association of Electoral Administrators,01652500,,Ext Fees/Prof & Tech,Training,D10DCDC0413561,510010522
http://statistics.data.gov.uk/id/local-authority/29UP,Tonbridge & Malling Borough Council,11/24/2021,0051008622/1,51008622, 600.00,HB Info Ltd,01478600,,Ext Fees/Prof & Tech,Training,D10DCDF1113561,510010501
http://statistics.data.gov.uk/id/local-authority/29UP,Tonbridge & Malling Borough Council,11/29/2021,0041033713/1,41033713, 15.00,National Westminster Bank Plc,00069400,,Bank Charges,Banking Arrangements,D43QK000044222,
